{"text_format":"1","workbook":"xlsx","n_sheets":4,"sheets":["Closed","Sheet1","Sheet2","Sheet3"],"not_rendered":{"charts":0,"images":0,"macros":1,"external_links":0,"defined_names":8,"comments":0,"pivot_tables":0},"unopened":[],"bounds":{"document_bytes":16777216,"sheet_cells":100000,"rows_first":2000,"rows_last":500,"rows_between":2000,"halvings":0,"cell_chars":16384,"cell_head_chars":4096},"cells_cut":0,"cells_raw":0,"read":"whole","date_system":"1900"}

{"sheet":"Closed","index":0,"n_rows":37,"n_cols":22,"rows_kept":37,"cut":false,"hidden":true,"merged":[[1,3,1,15],[2,3,2,15],[3,3,3,15]]}
[null,null,null,"Updated ","2016"]
[null,null,null,"Tennessee Gas Pipeline 2015 Pipeline Outage and Maintenance Summary"]
[null,null,null,"This is a summary of the current status of all TGP Winter 2014-2015 Pipeline Outages and Maintenance Projects.  This document is subject to change as the season progresses to reflect the updated status of all outages and maintenance projects including, but not limited to, project delays, cancellations and additions.  Additionally, anticipated impact and restrictions are subject to change.   \n*Unless otherwise noted, all listed meters will be physically shut-in for the duration of the project.\n*Unless otherwise noted, all scheduled dates represent gas days as defined in the Tennessee Gas Pipeline tariff to mean a period of twenty-four consecutive hours, beginning and ending at 9:00 a.m. (Central Clock Time)."]
[null,null,null,"*** Indicates revision"]
["Date Change","Project New/Completed/Closed","Outage #","Revised","Start Date","End Date","Reason Changed","Prev. Start Date","Prev. End Date","Location","Leg","Zone","Maintenance Activity","Anticipated Impact","Potential Restriction Level","TOS Potential Restrictions","Meter(s) in Impacted Area","Customer Notifications","Loc","Email Text","Posting Text","Completion Text"]
[{"$f":"IF(AND(H6<>\"\",I6<>\"\"), \"Date change. Previously scheduled \" & TEXT(H6,\"m/d/y;@\") &IF(H6=I6,\"\",\" to \" & TEXT(I6,\"m/d/y;@\")) & \".\",\"\")","v":""},"Project Completed",null,{"$f":"IF(G6<>\"\",\"***\",\"\")","v":"***"},"2015-01-11","2016-01-11",{"$f":"IF(AND(A6=\"\",B6=\"\"),\"\",IF(B6=\"\",A6,B6))","v":"Project Completed"},null,null,"MS #412494 DCP Warren","400","0","Meter Station","This project will require isolating the pipeline section.  Physical flow will be suspended.  No other service impact is anticipated.","SOP","Potential restrictions through a pro-rata portion of Secondary out of the Path (PAL-D (Park Withdrawals/Loans), IT, AOT, EDS/ERS, Payback From Tennessee, PAL-T (Park Withdrawals/Loans), SOP) nominations.","412494 DCP Warren",401,{"$f":"\"(\"&C6&\") \"&J6&\":  \"&M6&IF(AND(E6=\"\",F6=\"\"),\"\",\" (\")&IF(E6=\"\",\"\",\"\"&TEXT(E6,\"m/d/y;@\"))&IF(OR(F6=E6,E6=\"\",F6=\"\"),\"\",\" to \")&IF(OR(F6=\"\",F6=E6),\"\",TEXT(F6,\"m/d/y;@\"))&IF(AND(E6=\"\",F6=\"\"),\"\",\")\")","v":"() MS #412494 DCP Warren:  Meter Station (1/11/15 to 1/11/16)"},{"$f":"D6&J6&\":  \"&M6&IF(AND(E6=\"\",F6=\"\"),\"\",\"\n\")&IF(E6=\"\",\"\",\"--\"&TEXT(E6,\"m/d/y;@\"))&IF(OR(F6=E6,E6=\"\",F6=\"\"),\"\",\" through \")&IF(OR(F6=\"\",F6=E6),\"\",TEXT(F6,\"m/d/y;@\"))&IF(AND(E6=\"\",F6=\"\"),\"\",\":  \")&N6&\"  \"&P6&IF(Q6=\"\",\"\",\"\n\"&Q6)&IF(G6=\"\",\"\",\"\n***\")&G6&\"\n………………………………\"","v":"***MS #412494 DCP Warren:  Meter Station\n--1/11/15 through 1/11/16:  This project will require isolating the pipeline section.  Physical flow will be suspended.  No other service impact is anticipated.  Potential restrictions through a pro-rata portion of Secondary out of the Path (PAL-D (Park Withdrawals/Loans), IT, AOT, EDS/ERS, Payback From Tennessee, PAL-T (Park Withdrawals/Loans), SOP) nominations.\n412494 DCP Warren\n***Project Completed\n………………………………"},{"$f":"D6&J6&\":  \"&M6&IF(G6=\"\",\"\",\"\n***\")&G6&IF(Q6=\"\",\"\",\"\nThe following meters are available for nominations:\n\")&Q6&\"\n………………………………\"","v":"***MS #412494 DCP Warren:  Meter Station\n***Project Completed\nThe following meters are available for nominations:\n412494 DCP Warren\n………………………………"}]
["","Project Completed",null,"***","2015-01-11","2016-01-11","Project Completed",null,null,"MS #412400 King Ranch","400","0","Meter Station","This project will require isolating the pipeline section.  Physical flow will be suspended.  No other service impact is anticipated.","SOP","Potential restrictions through a pro-rata portion of Secondary out of the Path (PAL-D (Park Withdrawals/Loans), IT, AOT, EDS/ERS, Payback From Tennessee, PAL-T (Park Withdrawals/Loans), SOP) nominations.","412400 King Ranch",402.1,"() MS #412400 King Ranch:  Meter Station (1/11/15 to 1/11/16)","***MS #412400 King Ranch:  Meter Station\n--1/11/15 through 1/11/16:  This project will require isolating the pipeline section.  Physical flow will be suspended.  No other service impact is anticipated.  Potential restrictions through a pro-rata portion of Secondary out of the Path (PAL-D (Park Withdrawals/Loans), IT, AOT, EDS/ERS, Payback From Tennessee, PAL-T (Park Withdrawals/Loans), SOP) nominations.\n412400 King Ranch\n***Project Completed\n………………………………","***MS #412400 King Ranch:  Meter Station\n***Project Completed\nThe following meters are available for nominations:\n412400 King Ranch\n………………………………"]
["","Project Completed",null,"***","2015-01-12","2016-01-12","Project Completed",null,null,"MS #410539 Duvak Gas Gathering","400","0","Meter Station","This project will require isolating the pipeline section.  Physical flow will be suspended.  No other service impact is anticipated.","SOP","Potential restrictions through a pro-rata portion of Secondary out of the Path (PAL-D (Park Withdrawals/Loans), IT, AOT, EDS/ERS, Payback From Tennessee, PAL-T (Park Withdrawals/Loans), SOP) nominations.","410539 Duvak Gas Gathering",402.1,"() MS #410539 Duvak Gas Gathering:  Meter Station (1/12/15 to 1/12/16)","***MS #410539 Duvak Gas Gathering:  Meter Station\n--1/12/15 through 1/12/16:  This project will require isolating the pipeline section.  Physical flow will be suspended.  No other service impact is anticipated.  Potential restrictions through a pro-rata portion of Secondary out of the Path (PAL-D (Park Withdrawals/Loans), IT, AOT, EDS/ERS, Payback From Tennessee, PAL-T (Park Withdrawals/Loans), SOP) nominations.\n410539 Duvak Gas Gathering\n***Project Completed\n………………………………","***MS #410539 Duvak Gas Gathering:  Meter Station\n***Project Completed\nThe following meters are available for nominations:\n410539 Duvak Gas Gathering\n………………………………"]
["","Project Completed",null,"***","2015-01-13","2016-01-13","Project Completed",null,null,"MS #412356 DCP LaGloria","400","0","Meter Station","This project will require isolating the pipeline section.  Physical flow will be suspended.  No other service impact is anticipated.","SOP","Potential restrictions through a pro-rata portion of Secondary out of the Path (PAL-D (Park Withdrawals/Loans), IT, AOT, EDS/ERS, Payback From Tennessee, PAL-T (Park Withdrawals/Loans), SOP) nominations.","412356 DCP LaGloria",403.1,"() MS #412356 DCP LaGloria:  Meter Station (1/13/15 to 1/13/16)","***MS #412356 DCP LaGloria:  Meter Station\n--1/13/15 through 1/13/16:  This project will require isolating the pipeline section.  Physical flow will be suspended.  No other service impact is anticipated.  Potential restrictions through a pro-rata portion of Secondary out of the Path (PAL-D (Park Withdrawals/Loans), IT, AOT, EDS/ERS, Payback From Tennessee, PAL-T (Park Withdrawals/Loans), SOP) nominations.\n412356 DCP LaGloria\n***Project Completed\n………………………………","***MS #412356 DCP LaGloria:  Meter Station\n***Project Completed\nThe following meters are available for nominations:\n412356 DCP LaGloria\n………………………………"]
["","Project Completed",null,"***","2015-01-13","2016-01-13","Project Completed",null,null,"MS #410173 Enterprise LaReforma","400","0","Meter Station","This project will require isolating the pipeline section.  Physical flow will be suspended.  No other service impact is anticipated.","SOP","Potential restrictions through a pro-rata portion of Secondary out of the Path (PAL-D (Park Withdrawals/Loans), IT, AOT, EDS/ERS, Payback From Tennessee, PAL-T (Park Withdrawals/Loans), SOP) nominations.","410173 Enterprise LaReforma",406.1,"() MS #410173 Enterprise LaReforma:  Meter Station (1/13/15 to 1/13/16)","***MS #410173 Enterprise LaReforma:  Meter Station\n--1/13/15 through 1/13/16:  This project will require isolating the pipeline section.  Physical flow will be suspended.  No other service impact is anticipated.  Potential restrictions through a pro-rata portion of Secondary out of the Path (PAL-D (Park Withdrawals/Loans), IT, AOT, EDS/ERS, Payback From Tennessee, PAL-T (Park Withdrawals/Loans), SOP) nominations.\n410173 Enterprise LaReforma\n***Project Completed\n………………………………","***MS #410173 Enterprise LaReforma:  Meter Station\n***Project Completed\nThe following meters are available for nominations:\n410173 Enterprise LaReforma\n………………………………"]
["","Project Completed",null,"***","2015-01-12","2016-01-12","Project Completed",null,null,"MS #411903 Enterprise El Benito","400","0","Meter Station","This project will require isolating the pipeline section.  Physical flow will be suspended.  No other service impact is anticipated.","SOP","Potential restrictions through a pro-rata portion of Secondary out of the Path (PAL-D (Park Withdrawals/Loans), IT, AOT, EDS/ERS, Payback From Tennessee, PAL-T (Park Withdrawals/Loans), SOP) nominations.","411903 Enterprise El Benito",407.1,"() MS #411903 Enterprise El Benito:  Meter Station (1/12/15 to 1/12/16)","***MS #411903 Enterprise El Benito:  Meter Station\n--1/12/15 through 1/12/16:  This project will require isolating the pipeline section.  Physical flow will be suspended.  No other service impact is anticipated.  Potential restrictions through a pro-rata portion of Secondary out of the Path (PAL-D (Park Withdrawals/Loans), IT, AOT, EDS/ERS, Payback From Tennessee, PAL-T (Park Withdrawals/Loans), SOP) nominations.\n411903 Enterprise El Benito\n***Project Completed\n………………………………","***MS #411903 Enterprise El Benito:  Meter Station\n***Project Completed\nThe following meters are available for nominations:\n411903 Enterprise El Benito\n………………………………"]
["","Project Completed",null,"***","2015-01-11","2016-01-11","Project Completed",null,null,"MS #412088 Enterprise Sullivan","400","0","Meter Station","This project will require isolating the pipeline section.  Physical flow will be suspended.  No other service impact is anticipated.","SOP","Potential restrictions through a pro-rata portion of Secondary out of the Path (PAL-D (Park Withdrawals/Loans), IT, AOT, EDS/ERS, Payback From Tennessee, PAL-T (Park Withdrawals/Loans), SOP) nominations.","412088 Enterprise Sullivan",407.1,"() MS #412088 Enterprise Sullivan:  Meter Station (1/11/15 to 1/11/16)","***MS #412088 Enterprise Sullivan:  Meter Station\n--1/11/15 through 1/11/16:  This project will require isolating the pipeline section.  Physical flow will be suspended.  No other service impact is anticipated.  Potential restrictions through a pro-rata portion of Secondary out of the Path (PAL-D (Park Withdrawals/Loans), IT, AOT, EDS/ERS, Payback From Tennessee, PAL-T (Park Withdrawals/Loans), SOP) nominations.\n412088 Enterprise Sullivan\n***Project Completed\n………………………………","***MS #412088 Enterprise Sullivan:  Meter Station\n***Project Completed\nThe following meters are available for nominations:\n412088 Enterprise Sullivan\n………………………………"]
["","Project Completed",null,"***","2015-01-11","2016-01-11","Project Completed",null,null,"MS #412683 HESCO","400","0","Meter Station","This project will require isolating the pipeline section.  Physical flow will be suspended.  No other service impact is anticipated.","SOP","Potential restrictions through a pro-rata portion of Secondary out of the Path (PAL-D (Park Withdrawals/Loans), IT, AOT, EDS/ERS, Payback From Tennessee, PAL-T (Park Withdrawals/Loans), SOP) nominations.","412683 HESCO",408.1,"() MS #412683 HESCO:  Meter Station (1/11/15 to 1/11/16)","***MS #412683 HESCO:  Meter Station\n--1/11/15 through 1/11/16:  This project will require isolating the pipeline section.  Physical flow will be suspended.  No other service impact is anticipated.  Potential restrictions through a pro-rata portion of Secondary out of the Path (PAL-D (Park Withdrawals/Loans), IT, AOT, EDS/ERS, Payback From Tennessee, PAL-T (Park Withdrawals/Loans), SOP) nominations.\n412683 HESCO\n***Project Completed\n………………………………","***MS #412683 HESCO:  Meter Station\n***Project Completed\nThe following meters are available for nominations:\n412683 HESCO\n………………………………"]
[{"$f":"IF(AND(H14<>\"\",I14<>\"\"), \"Date change. Previously scheduled \" & TEXT(H14,\"m/d/y;@\") &IF(H14=I14,\"\",\" to \" & TEXT(I14,\"m/d/y;@\")) & \".\",\"\")","v":""},"Project Completed","X16-36843",{"$f":"IF(G14<>\"\",\"***\",\"\")","v":"***"},"2016-01-27","2016-01-27","Project Completed",null,null,"Sta. 237",200,5,"Unit  Maintenance","This project will require a unit outage, which could limit throughput through the station and result in restrictions based on customer nominations.","SOP","Potential restrictions through a pro-rata portion of Secondary out of the Path (PAL-D (Park Withdrawals/Loans), IT, AOT, EDS/ERS, Payback From Tennessee, PAL-T (Park Withdrawals/Loans), SOP) nominations.",null,237,"(X16-36843) Sta. 237:  Unit  Maintenance (1/27/16)","***Sta. 237:  Unit  Maintenance\n--1/27/16:  This project will require a unit outage, which could limit throughput through the station and result in restrictions based on customer nominations.  Potential restrictions through a pro-rata portion of Secondary out of the Path (PAL-D (Park Withdrawals/Loans), IT, AOT, EDS/ERS, Payback From Tennessee, PAL-T (Park Withdrawals/Loans), SOP) nominations.\n***Project Completed\n………………………………","***Sta. 237:  Unit  Maintenance\n***Project Completed\n………………………………"]
[{"$f":"IF(AND(H15<>\"\",I15<>\"\"), \"Date change. Previously scheduled \" & TEXT(H15,\"m/d/y;@\") &IF(H15=I15,\"\",\" to \" & TEXT(I15,\"m/d/y;@\")) & \".\",\"\")","v":""},"Project Completed","X14-1478563",{"$f":"IF(G15<>\"\",\"***\",\"\")","v":"***"},"2015-11-16","2016-02-12","Project Completed",null,null,"MLV 32-1D to 33-1","100","0","Hydrotest","This project will require taking the pipeline section out of service.  This will limit throughput and may result in restrictions based on customer nominations.","SOP","Potential restrictions through a pro-rata portion of Secondary out of the Path (PAL-D (Park Withdrawals/Loans), IT, AOT, EDS/ERS, Payback From Tennessee, PAL-T (Park Withdrawals/Loans), SOP) nominations.",null,32.200000000000003,"(X14-1478563) MLV 32-1D to 33-1:  Hydrotest (11/16/15 to 2/12/16)","***MLV 32-1D to 33-1:  Hydrotest\n--11/16/15 through 2/12/16:  This project will require taking the pipeline section out of service.  This will limit throughput and may result in restrictions based on customer nominations.  Potential restrictions through a pro-rata portion of Secondary out of the Path (PAL-D (Park Withdrawals/Loans), IT, AOT, EDS/ERS, Payback From Tennessee, PAL-T (Park Withdrawals/Loans), SOP) nominations.\n***Project Completed\n………………………………","***MLV 32-1D to 33-1:  Hydrotest\n***Project Completed\n………………………………"]
[null,"Project Completed","X16-16074",null,"2016-01-18","2016-01-28","Project Completed",null,null,"Station 550","500","1","Station Maintenance","This project will require a station outage, which will limit throughput through the station and may result in restrictions based on customer nominations. Customers may experience an increase in pressures during this time.","SOP","Potential restrictions through a pro-rata portion of Secondary out of the Path (PAL-D (Park Withdrawals/Loans), IT, AOT, EDS/ERS, Payback From Tennessee, PAL-T (Park Withdrawals/Loans), SOP) nominations.",null,550,"(X16-16074) Station 550:  Station Maintenance (1/18/16 to 1/28/16)","Station 550:  Station Maintenance\n--1/18/16 through 1/28/16:  This project will require a station outage, which will limit throughput through the station and may result in restrictions based on customer nominations. Customers may experience an increase in pressures during this time.  Potential restrictions through a pro-rata portion of Secondary out of the Path (PAL-D (Park Withdrawals/Loans), IT, AOT, EDS/ERS, Payback From Tennessee, PAL-T (Park Withdrawals/Loans), SOP) nominations.\n***Project Completed\n………………………………","Station 550:  Station Maintenance\n***Project Completed\n………………………………"]
[{"$f":"IF(AND(H17<>\"\",I17<>\"\"), \"Date change. Previously scheduled \" & TEXT(H17,\"m/d/y;@\") &IF(H17=I17,\"\",\" to \" & TEXT(I17,\"m/d/y;@\")) & \".\",\"\")","v":""},"Project Completed","X16-46202",{"$f":"IF(G17<>\"\",\"***\",\"\")","v":"***"},"2016-02-01","2016-02-07","Project Completed",null,null,"Station 9","100","0","Station Maintenance\n (station tie-ins associated with the hydrotest from MLV 5-1 to 9-1 *see above items)","This project will require a station outage, which will limit throughput through the station and may result in restrictions based on customer nominations. Customers may experience an increase in pressures during this time.","SIP","Potential restrictions through a pro-rata portion of Secondary in the Path (PAL-D (Park Withdrawals/Loans), IT, AOT, EDS/ERS, Payback From Tennessee, PAL-T (Park Withdrawals/Loans), SOP, SIP) nominations.",null,9,"(X16-46202) Station 9:  Station Maintenance\n (station tie-ins associated with the hydrotest from MLV 5-1 to 9-1 *see above items) (2/1/16 to 2/7/16)","***Station 9:  Station Maintenance\n (station tie-ins associated with the hydrotest from MLV 5-1 to 9-1 *see above items)\n--2/1/16 through 2/7/16:  This project will require a station outage, which will limit throughput through the station and may result in restrictions based on customer nominations. Customers may experience an increase in pressures during this time.  Potential restrictions through a pro-rata portion of Secondary in the Path (PAL-D (Park Withdrawals/Loans), IT, AOT, EDS/ERS, Payback From Tennessee, PAL-T (Park Withdrawals/Loans), SOP, SIP) nominations.\n***Project Completed\n………………………………","***Station 9:  Station Maintenance\n (station tie-ins associated with the hydrotest from MLV 5-1 to 9-1 *see above items)\n***Project Completed\n………………………………"]
["","Project Completed","X15-925633","***","2016-02-09","2016-02-11","Project Completed",null,null,"Sta. 266A",200,6,"Unit  Maintenance","This project will require a unit outage, which could limit throughput through the station and result in restrictions based on customer nominations.","SOP","Potential restrictions through a pro-rata portion of Secondary out of the Path (PAL-D (Park Withdrawals/Loans), IT, AOT, EDS/ERS, Payback From Tennessee, PAL-T (Park Withdrawals/Loans), SOP) nominations.",null,266,"(X15-925633) Sta. 266A:  Unit  Maintenance (2/9/16 to 2/11/16)","***Sta. 266A:  Unit  Maintenance\n--2/9/16 through 2/11/16:  This project will require a unit outage, which could limit throughput through the station and result in restrictions based on customer nominations.  Potential restrictions through a pro-rata portion of Secondary out of the Path (PAL-D (Park Withdrawals/Loans), IT, AOT, EDS/ERS, Payback From Tennessee, PAL-T (Park Withdrawals/Loans), SOP) nominations.\n***Project Completed\n………………………………","***Sta. 266A:  Unit  Maintenance\n***Project Completed\n………………………………"]
["","Project Completed","X15-929733","***","2016-01-27","2016-02-10","Project Completed",null,null,"MLV 834-1 to 838-1",800,5,"ILI/Cleaning Pig","This activity will require operating at controlled flow rates.   Customers may experience pressure fluctuations, however, no other service impact is anticipated. ","SOP","Potential restrictions through a pro-rata portion of Secondary out of the Path (PAL-D (Park Withdrawals/Loans), IT, AOT, EDS/ERS, Payback From Tennessee, PAL-T (Park Withdrawals/Loans), SOP) nominations.","To Be Determined",834.1,"(X15-929733) MLV 834-1 to 838-1:  ILI/Cleaning Pig (1/27/16 to 2/10/16)","***MLV 834-1 to 838-1:  ILI/Cleaning Pig\n--1/27/16 through 2/10/16:  This activity will require operating at controlled flow rates.   Customers may experience pressure fluctuations, however, no other service impact is anticipated.   Potential restrictions through a pro-rata portion of Secondary out of the Path (PAL-D (Park Withdrawals/Loans), IT, AOT, EDS/ERS, Payback From Tennessee, PAL-T (Park Withdrawals/Loans), SOP) nominations.\nTo Be Determined\n***Project Completed\n………………………………","***MLV 834-1 to 838-1:  ILI/Cleaning Pig\n***Project Completed\nThe following meters are available for nominations:\nTo Be Determined\n………………………………"]
["","Project Completed","X14-1562506","***","2015-11-02","2016-02-19","Project Completed",null,null,"MLV 5-1 to 6-1","100","0","Hydrotest","This project will require taking the pipeline section out of service.  The listed meters will be shut in during the outage.  This will limit throughput and may result in restrictions based on customer nominations.","SOP","Potential restrictions through a pro-rata portion of Secondary out of the Path (PAL-D (Park Withdrawals/Loans), IT, AOT, EDS/ERS, Payback From Tennessee, PAL-T (Park Withdrawals/Loans), SOP) nominations.","410063 ROCHE DEHYDRATION             \n",5.0999999999999996,"(X14-1562506) MLV 5-1 to 6-1:  Hydrotest (11/2/15 to 2/19/16)","***MLV 5-1 to 6-1:  Hydrotest\n--11/2/15 through 2/19/16:  This project will require taking the pipeline section out of service.  The listed meters will be shut in during the outage.  This will limit throughput and may result in restrictions based on customer nominations.  Potential restrictions through a pro-rata portion of Secondary out of the Path (PAL-D (Park Withdrawals/Loans), IT, AOT, EDS/ERS, Payback From Tennessee, PAL-T (Park Withdrawals/Loans), SOP) nominations.\n410063 ROCHE DEHYDRATION             \n\n***Project Completed\n………………………………","***MLV 5-1 to 6-1:  Hydrotest\n***Project Completed\nThe following meters are available for nominations:\n410063 ROCHE DEHYDRATION             \n\n………………………………"]
["","Project Completed","X14-1562506","***","2015-11-02","2016-02-19","Project Completed",null,null,"MLV 7-1 to 9-1","100","0","Hydrotest","This project will require taking the pipeline section out of service.  The listed meters will be shut in during the outage.  This will limit throughput and may result in restrictions based on customer nominations.","SOP","Potential restrictions through a pro-rata portion of Secondary out of the Path (PAL-D (Park Withdrawals/Loans), IT, AOT, EDS/ERS, Payback From Tennessee, PAL-T (Park Withdrawals/Loans), SOP) nominations.","\n412490 Charro\n421083 Eagle Ford Field Service",5.0999999999999996,"(X14-1562506) MLV 7-1 to 9-1:  Hydrotest (11/2/15 to 2/19/16)","***MLV 7-1 to 9-1:  Hydrotest\n--11/2/15 through 2/19/16:  This project will require taking the pipeline section out of service.  The listed meters will be shut in during the outage.  This will limit throughput and may result in restrictions based on customer nominations.  Potential restrictions through a pro-rata portion of Secondary out of the Path (PAL-D (Park Withdrawals/Loans), IT, AOT, EDS/ERS, Payback From Tennessee, PAL-T (Park Withdrawals/Loans), SOP) nominations.\n\n412490 Charro\n421083 Eagle Ford Field Service\n***Project Completed\n………………………………","***MLV 7-1 to 9-1:  Hydrotest\n***Project Completed\nThe following meters are available for nominations:\n\n412490 Charro\n421083 Eagle Ford Field Service\n………………………………"]
["Date change. Previously scheduled 2/18/16 to 2/20/16.","Project Completed","X15-882289","***","2016-02-22","2016-02-24","Project Completed","2016-02-18","2016-02-20","MLV 24-2 to 25-2S",100,0,"Anomaly Remediation","This outage will require pressure reductions and possibly line isolations.  However no other service impact is anticipated.","SOP","Potential restrictions through a pro-rata portion of Secondary out of the Path (PAL-D (Park Withdrawals/Loans), IT, AOT, EDS/ERS, Payback From Tennessee, PAL-T (Park Withdrawals/Loans), SOP) nominations.","To Be Determined",24.2,"(X15-882289) MLV 24-2 to 25-2S:  Anomaly Remediation (2/22/16 to 2/24/16)","***MLV 24-2 to 25-2S:  Anomaly Remediation\n--2/22/16 through 2/24/16:  This outage will require pressure reductions and possibly line isolations.  However no other service impact is anticipated.  Potential restrictions through a pro-rata portion of Secondary out of the Path (PAL-D (Park Withdrawals/Loans), IT, AOT, EDS/ERS, Payback From Tennessee, PAL-T (Park Withdrawals/Loans), SOP) nominations.\nTo Be Determined\n***Project Completed\n………………………………","***MLV 24-2 to 25-2S:  Anomaly Remediation\n***Project Completed\nThe following meters are available for nominations:\nTo Be Determined\n………………………………"]
["","Project Completed","X15-925630","***","2016-02-23","2016-02-23","Project Completed",null,null,"WORCESTER DELIVERY NO. 2 LINE \n(265C-101.1 to 265C-101B)",200,"L","ILI/Cleaning Pig","This activity will require operating at controlled flow rates.   Customers may experience pressure fluctuations, however, no other service impact is anticipated. ","SOP","Potential restrictions through a pro-rata portion of Secondary out of the Path (PAL-D (Park Withdrawals/Loans), IT, AOT, EDS/ERS, Payback From Tennessee, PAL-T (Park Withdrawals/Loans), SOP) nominations.",null,265.10000000000002,"(X15-925630) WORCESTER DELIVERY NO. 2 LINE \n(265C-101.1 to 265C-101B):  ILI/Cleaning Pig (2/23/16)","***WORCESTER DELIVERY NO. 2 LINE \n(265C-101.1 to 265C-101B):  ILI/Cleaning Pig\n--2/23/16:  This activity will require operating at controlled flow rates.   Customers may experience pressure fluctuations, however, no other service impact is anticipated.   Potential restrictions through a pro-rata portion of Secondary out of the Path (PAL-D (Park Withdrawals/Loans), IT, AOT, EDS/ERS, Payback From Tennessee, PAL-T (Park Withdrawals/Loans), SOP) nominations.\n***Project Completed\n………………………………","***WORCESTER DELIVERY NO. 2 LINE \n(265C-101.1 to 265C-101B):  ILI/Cleaning Pig\n***Project Completed\n………………………………"]
["","Project Completed","X16-23748","***","2016-02-15","2016-02-18","Project Completed",null,null,"MLV 530-3 to 532-3",500,"L","ILI/Cleaning Pig","This activity will require operating at controlled flow rates.   Customers may experience pressure fluctuations, however, no other service impact is anticipated. ","SOP","Potential restrictions through a pro-rata portion of Secondary out of the Path (PAL-D (Park Withdrawals/Loans), IT, AOT, EDS/ERS, Payback From Tennessee, PAL-T (Park Withdrawals/Loans), SOP) nominations.",null,530.29999999999995,"(X16-23748) MLV 530-3 to 532-3:  ILI/Cleaning Pig (2/15/16 to 2/18/16)","***MLV 530-3 to 532-3:  ILI/Cleaning Pig\n--2/15/16 through 2/18/16:  This activity will require operating at controlled flow rates.   Customers may experience pressure fluctuations, however, no other service impact is anticipated.   Potential restrictions through a pro-rata portion of Secondary out of the Path (PAL-D (Park Withdrawals/Loans), IT, AOT, EDS/ERS, Payback From Tennessee, PAL-T (Park Withdrawals/Loans), SOP) nominations.\n***Project Completed\n………………………………","***MLV 530-3 to 532-3:  ILI/Cleaning Pig\n***Project Completed\n………………………………"]
["","Project Canceled","X16-98720","***","2016-03-06","2016-03-06","Project Canceled",null,null,"Sta. 1",100,0,"Station Maintenance","This project will require a station outage, which will limit throughput through the station and may result in restrictions based on customer nominations. Customers may experience an increase in pressures during this time.","SOP","Potential restrictions through a pro-rata portion of Secondary out of the Path (PAL-D (Park Withdrawals/Loans), IT, AOT, EDS/ERS, Payback From Tennessee, PAL-T (Park Withdrawals/Loans), SOP) nominations.",null,1,"(X16-98720) Sta. 1:  Station Maintenance (3/6/16)","***Sta. 1:  Station Maintenance\n--3/6/16:  This project will require a station outage, which will limit throughput through the station and may result in restrictions based on customer nominations. Customers may experience an increase in pressures during this time.  Potential restrictions through a pro-rata portion of Secondary out of the Path (PAL-D (Park Withdrawals/Loans), IT, AOT, EDS/ERS, Payback From Tennessee, PAL-T (Park Withdrawals/Loans), SOP) nominations.\n***Project Canceled\n………………………………","***Sta. 1:  Station Maintenance\n***Project Canceled\n………………………………"]
["","Project Completed","X14-1562513\nX14-1540661","***","2015-07-01","2016-03-04","Project Completed",null,null,"Station 32","100","0","Station Maintenance","This project will require a station outage, which will limit throughput through the station and may result in restrictions based on customer nominations. Customers may experience an increase in pressures during this time.","SOP","Potential restrictions through a pro-rata portion of Secondary out of the Path (PAL-D (Park Withdrawals/Loans), IT, AOT, EDS/ERS, Payback From Tennessee, PAL-T (Park Withdrawals/Loans), SOP) nominations.",null,32,"(X14-1562513\nX14-1540661) Station 32:  Station Maintenance (7/1/15 to 3/4/16)","***Station 32:  Station Maintenance\n--7/1/15 through 3/4/16:  This project will require a station outage, which will limit throughput through the station and may result in restrictions based on customer nominations. Customers may experience an increase in pressures during this time.  Potential restrictions through a pro-rata portion of Secondary out of the Path (PAL-D (Park Withdrawals/Loans), IT, AOT, EDS/ERS, Payback From Tennessee, PAL-T (Park Withdrawals/Loans), SOP) nominations.\n***Project Completed\n………………………………","***Station 32:  Station Maintenance\n***Project Completed\n………………………………"]
["","Project Canceled","X15-926822","***","2016-06-06","2016-06-11","Project Canceled",null,null,"BRIDGEPORT DELIVERY LINE NO. 2 (343A-101.1)",300,6,"Pipe Inspection","This project involves inspecting multiple sites.  We do not anticipate having to do any repairs, however if a repair is needed  there is a potential that the pipe  may require replacement which will require isolation of the pipe.  This may limit throughput and will result in restrictions based on customer nominations.  Customers may experience pressure fluctuations during this timeframe.","SOP","Potential restrictions through a pro-rata portion of Secondary out of the Path (PAL-D (Park Withdrawals/Loans), IT, AOT, EDS/ERS, Payback From Tennessee, PAL-T (Park Withdrawals/Loans), SOP) nominations.","To Be Determined",343.1,"(X15-926822) BRIDGEPORT DELIVERY LINE NO. 2 (343A-101.1):  Pipe Inspection (6/6/16 to 6/11/16)","***BRIDGEPORT DELIVERY LINE NO. 2 (343A-101.1):  Pipe Inspection\n--6/6/16 through 6/11/16:  This project involves inspecting multiple sites.  We do not anticipate having to do any repairs, however if a repair is needed  there is a potential that the pipe  may require replacement which will require isolation of the pipe.  This may limit throughput and will result in restrictions based on customer nominations.  Customers may experience pressure fluctuations during this timeframe.  Potential restrictions through a pro-rata portion of Secondary out of the Path (PAL-D (Park Withdrawals/Loans), IT, AOT, EDS/ERS, Payback From Tennessee, PAL-T (Park Withdrawals/Loans), SOP) nominations.\nTo Be Determined\n***Project Canceled\n………………………………","***BRIDGEPORT DELIVERY LINE NO. 2 (343A-101.1):  Pipe Inspection\n***Project Canceled\nThe following meters are available for nominations:\nTo Be Determined\n………………………………"]
["","Project Canceled","X15-928271","***","TBD","TBD","Project Canceled",null,null,"MLV 555-1 to 550-1",500,1,"ILI/Cleaning Pig","This activity will require operating at controlled flow rates.   Customers may experience pressure fluctuations, however, no other service impact is anticipated. ","SOP","Potential restrictions through a pro-rata portion of Secondary out of the Path (PAL-D (Park Withdrawals/Loans), IT, AOT, EDS/ERS, Payback From Tennessee, PAL-T (Park Withdrawals/Loans), SOP) nominations.","To Be Determined",555.1,"(X15-928271) MLV 555-1 to 550-1:  ILI/Cleaning Pig (TBD)","***MLV 555-1 to 550-1:  ILI/Cleaning Pig\n--TBD:  This activity will require operating at controlled flow rates.   Customers may experience pressure fluctuations, however, no other service impact is anticipated.   Potential restrictions through a pro-rata portion of Secondary out of the Path (PAL-D (Park Withdrawals/Loans), IT, AOT, EDS/ERS, Payback From Tennessee, PAL-T (Park Withdrawals/Loans), SOP) nominations.\nTo Be Determined\n***Project Canceled\n………………………………","***MLV 555-1 to 550-1:  ILI/Cleaning Pig\n***Project Canceled\nThe following meters are available for nominations:\nTo Be Determined\n………………………………"]
["","Project Canceled","X15-928272","***","TBD","TBD","Project Canceled",null,null,"MLV 555-2 to 550-2",500,1,"ILI/Cleaning Pig","This activity will require operating at controlled flow rates.   Customers may experience pressure fluctuations, however, no other service impact is anticipated. ","SOP","Potential restrictions through a pro-rata portion of Secondary out of the Path (PAL-D (Park Withdrawals/Loans), IT, AOT, EDS/ERS, Payback From Tennessee, PAL-T (Park Withdrawals/Loans), SOP) nominations.","To Be Determined",555.20000000000005,"(X15-928272) MLV 555-2 to 550-2:  ILI/Cleaning Pig (TBD)","***MLV 555-2 to 550-2:  ILI/Cleaning Pig\n--TBD:  This activity will require operating at controlled flow rates.   Customers may experience pressure fluctuations, however, no other service impact is anticipated.   Potential restrictions through a pro-rata portion of Secondary out of the Path (PAL-D (Park Withdrawals/Loans), IT, AOT, EDS/ERS, Payback From Tennessee, PAL-T (Park Withdrawals/Loans), SOP) nominations.\nTo Be Determined\n***Project Canceled\n………………………………","***MLV 555-2 to 550-2:  ILI/Cleaning Pig\n***Project Canceled\nThe following meters are available for nominations:\nTo Be Determined\n………………………………"]
["","Project Canceled","X15-928273","***","TBD","TBD","Project Canceled",null,null,"MLV 555-3 to 552-3",500,1,"ILI/Cleaning Pig","This activity will require operating at controlled flow rates.   Customers may experience pressure fluctuations, however, no other service impact is anticipated. ","SOP","Potential restrictions through a pro-rata portion of Secondary out of the Path (PAL-D (Park Withdrawals/Loans), IT, AOT, EDS/ERS, Payback From Tennessee, PAL-T (Park Withdrawals/Loans), SOP) nominations.","To Be Determined",555.29999999999995,"(X15-928273) MLV 555-3 to 552-3:  ILI/Cleaning Pig (TBD)","***MLV 555-3 to 552-3:  ILI/Cleaning Pig\n--TBD:  This activity will require operating at controlled flow rates.   Customers may experience pressure fluctuations, however, no other service impact is anticipated.   Potential restrictions through a pro-rata portion of Secondary out of the Path (PAL-D (Park Withdrawals/Loans), IT, AOT, EDS/ERS, Payback From Tennessee, PAL-T (Park Withdrawals/Loans), SOP) nominations.\nTo Be Determined\n***Project Canceled\n………………………………","***MLV 555-3 to 552-3:  ILI/Cleaning Pig\n***Project Canceled\nThe following meters are available for nominations:\nTo Be Determined\n………………………………"]
["","Project Completed","X15-882281","***","2016-02-24","2016-03-03","Project Completed",null,null,"24-1A to 25-1S",100,0,"Anomaly Remediation","This outage will require pressure reductions and possibly line isolations.  However no other service impact is anticipated.","SOP","Potential restrictions through a pro-rata portion of Secondary out of the Path (PAL-D (Park Withdrawals/Loans), IT, AOT, EDS/ERS, Payback From Tennessee, PAL-T (Park Withdrawals/Loans), SOP) nominations.","To Be Determined",24.1,"(X15-882281) 24-1A to 25-1S:  Anomaly Remediation (2/24/16 to 3/3/16)","***24-1A to 25-1S:  Anomaly Remediation\n--2/24/16 through 3/3/16:  This outage will require pressure reductions and possibly line isolations.  However no other service impact is anticipated.  Potential restrictions through a pro-rata portion of Secondary out of the Path (PAL-D (Park Withdrawals/Loans), IT, AOT, EDS/ERS, Payback From Tennessee, PAL-T (Park Withdrawals/Loans), SOP) nominations.\nTo Be Determined\n***Project Completed\n………………………………","***24-1A to 25-1S:  Anomaly Remediation\n***Project Completed\nThe following meters are available for nominations:\nTo Be Determined\n………………………………"]
["","Project Completed","X15-882291","***","2016-03-03","2016-03-04","Project Completed",null,null,"MLV 24-3 to 25-3S",100,0,"Anomaly Remediation","This outage will require pressure reductions and possibly line isolations.  However no other service impact is anticipated.","SOP","Potential restrictions through a pro-rata portion of Secondary out of the Path (PAL-D (Park Withdrawals/Loans), IT, AOT, EDS/ERS, Payback From Tennessee, PAL-T (Park Withdrawals/Loans), SOP) nominations.","To Be Determined",24.3,"(X15-882291) MLV 24-3 to 25-3S:  Anomaly Remediation (3/3/16 to 3/4/16)","***MLV 24-3 to 25-3S:  Anomaly Remediation\n--3/3/16 through 3/4/16:  This outage will require pressure reductions and possibly line isolations.  However no other service impact is anticipated.  Potential restrictions through a pro-rata portion of Secondary out of the Path (PAL-D (Park Withdrawals/Loans), IT, AOT, EDS/ERS, Payback From Tennessee, PAL-T (Park Withdrawals/Loans), SOP) nominations.\nTo Be Determined\n***Project Completed\n………………………………","***MLV 24-3 to 25-3S:  Anomaly Remediation\n***Project Completed\nThe following meters are available for nominations:\nTo Be Determined\n………………………………"]
["","Project Completed","X14-1178175","***","2015-06-15","2016-03-31","Project Completed",null,null,"Station 63","100","1","Station Maintenance","This project will require a station outage, which will limit throughput through the station and may result in restrictions based on customer nominations. Customers may experience an increase in pressures during this time.","SOP","Potential restrictions through a pro-rata portion of Secondary out of the Path (PAL-D (Park Withdrawals/Loans), IT, AOT, EDS/ERS, Payback From Tennessee, PAL-T (Park Withdrawals/Loans), SOP) nominations.",null,63,"(X14-1178175) Station 63:  Station Maintenance (6/15/15 to 3/31/16)","***Station 63:  Station Maintenance\n--6/15/15 through 3/31/16:  This project will require a station outage, which will limit throughput through the station and may result in restrictions based on customer nominations. Customers may experience an increase in pressures during this time.  Potential restrictions through a pro-rata portion of Secondary out of the Path (PAL-D (Park Withdrawals/Loans), IT, AOT, EDS/ERS, Payback From Tennessee, PAL-T (Park Withdrawals/Loans), SOP) nominations.\n***Project Completed\n………………………………","***Station 63:  Station Maintenance\n***Project Completed\n………………………………"]
["","Project Cancelled","X15-913224","***","2016-04-16","2016-05-21","Project Cancelled",null,null,"MLV 109-2",100,2,"Pipe Replacement","This project will require taking the pipeline section out of service.   This will limit throughput and will result in restrictions based on customer nominations.","SOP","Potential restrictions through a pro-rata portion of Secondary out of the Path (PAL-D (Park Withdrawals/Loans), IT, AOT, EDS/ERS, Payback From Tennessee, PAL-T (Park Withdrawals/Loans), SOP) nominations.","To Be Determined",109.2,"(X15-913224) MLV 109-2:  Pipe Replacement (4/16/16 to 5/21/16)","***MLV 109-2:  Pipe Replacement\n--4/16/16 through 5/21/16:  This project will require taking the pipeline section out of service.   This will limit throughput and will result in restrictions based on customer nominations.  Potential restrictions through a pro-rata portion of Secondary out of the Path (PAL-D (Park Withdrawals/Loans), IT, AOT, EDS/ERS, Payback From Tennessee, PAL-T (Park Withdrawals/Loans), SOP) nominations.\nTo Be Determined\n***Project Cancelled\n………………………………","***MLV 109-2:  Pipe Replacement\n***Project Cancelled\nThe following meters are available for nominations:\nTo Be Determined\n………………………………"]
["","Project Completed","X15-926830","***","2016-03-07","2016-03-11","Project Completed",null,null,"MLV 400-1 to 408-1",100,0,"ILI/Cleaning Pig","This activity will require operating at controlled flow rates.   Customers may experience pressure fluctuations, however, no other service impact is anticipated. ","SIP","Potential restrictions through a pro-rata portion of Secondary in the Path (PAL-D (Park Withdrawals/Loans), IT, AOT, EDS/ERS, Payback From Tennessee, PAL-T (Park Withdrawals/Loans), SOP, SIP) nominations.","To Be Determined",400.1,"(X15-926830) MLV 400-1 to 408-1:  ILI/Cleaning Pig (3/7/16 to 3/11/16)","***MLV 400-1 to 408-1:  ILI/Cleaning Pig\n--3/7/16 through 3/11/16:  This activity will require operating at controlled flow rates.   Customers may experience pressure fluctuations, however, no other service impact is anticipated.   Potential restrictions through a pro-rata portion of Secondary in the Path (PAL-D (Park Withdrawals/Loans), IT, AOT, EDS/ERS, Payback From Tennessee, PAL-T (Park Withdrawals/Loans), SOP, SIP) nominations.\nTo Be Determined\n***Project Completed\n………………………………","***MLV 400-1 to 408-1:  ILI/Cleaning Pig\n***Project Completed\nThe following meters are available for nominations:\nTo Be Determined\n………………………………"]
["","Project Cancelled","X16-143836","***","2016-03-28","2016-04-04","Project Cancelled",null,null,"Sta. 409",100,0,"Unit  Maintenance","This project will require a unit outage, which could limit throughput through the station and result in restrictions based on customer nominations.","SIP","Potential restrictions through a pro-rata portion of Secondary in the Path (PAL-D (Park Withdrawals/Loans), IT, AOT, EDS/ERS, Payback From Tennessee, PAL-T (Park Withdrawals/Loans), SOP, SIP) nominations.",null,409,"(X16-143836) Sta. 409:  Unit  Maintenance (3/28/16 to 4/4/16)","***Sta. 409:  Unit  Maintenance\n--3/28/16 through 4/4/16:  This project will require a unit outage, which could limit throughput through the station and result in restrictions based on customer nominations.  Potential restrictions through a pro-rata portion of Secondary in the Path (PAL-D (Park Withdrawals/Loans), IT, AOT, EDS/ERS, Payback From Tennessee, PAL-T (Park Withdrawals/Loans), SOP, SIP) nominations.\n***Project Cancelled\n………………………………","***Sta. 409:  Unit  Maintenance\n***Project Cancelled\n………………………………"]
["","Project Cancelled","X15-929680","***","2016-04-18","2016-04-27","Project Cancelled",null,null,"SABINE - KINDER LINE to 822-1",800,"L","Anomaly Remediation","This outage will require pressure reductions and possibly line isolations.  However no other service impact is anticipated.","SOP","Potential restrictions through a pro-rata portion of Secondary out of the Path (PAL-D (Park Withdrawals/Loans), IT, AOT, EDS/ERS, Payback From Tennessee, PAL-T (Park Withdrawals/Loans), SOP) nominations.","To Be Determined",822.1,"(X15-929680) SABINE - KINDER LINE to 822-1:  Anomaly Remediation (4/18/16 to 4/27/16)","***SABINE - KINDER LINE to 822-1:  Anomaly Remediation\n--4/18/16 through 4/27/16:  This outage will require pressure reductions and possibly line isolations.  However no other service impact is anticipated.  Potential restrictions through a pro-rata portion of Secondary out of the Path (PAL-D (Park Withdrawals/Loans), IT, AOT, EDS/ERS, Payback From Tennessee, PAL-T (Park Withdrawals/Loans), SOP) nominations.\nTo Be Determined\n***Project Cancelled\n………………………………","***SABINE - KINDER LINE to 822-1:  Anomaly Remediation\n***Project Cancelled\nThe following meters are available for nominations:\nTo Be Determined\n………………………………"]

{"sheet":"Sheet1","index":1,"n_rows":228,"n_cols":33,"rows_kept":228,"cut":false,"hidden":false,"merged":[[2,0,2,14]]}
["Updated ","2021-05-14"]
["Tennessee Gas Pipeline 2021 Pipeline Outage and Maintenance Summary"]
["This is a summary of the current status of all TGP 2021 Pipeline Outages and Maintenance Projects.  This document is subject to change as the season progresses to reflect the updated status of all outages and maintenance projects including, but not limited to, project delays, cancellations and additions.  \nAdditionally, anticipated impact and restrictions are subject to change.   \n*Unless otherwise noted, all listed meters will be physically shut-in for the duration of the project.\n*Unless otherwise noted, all scheduled dates represent gas days as defined in the Tennessee Gas Pipeline tariff to mean a period of twenty-four consecutive hours, beginning and ending at 9:00 a.m. (Central Clock Time)."]
["*** Indicates revision"]
["Outage #","Revised","Start Date","End Date","Reason Changed","Prev. Start Date","Prev. End Date","Location","Leg","Zone","Maintenance Activity","Anticipated Impact","Potential Restriction Level","TOS Potential Restrictions","Meter(s) in Impacted Area",null,null,null,null,null,null,null,null,null,"\\\\houCORP\\TRANS\\TRANSERVICES\\OPPLAN\\COMMON\\Outages\\Outage_DB\\TGP\\Files"]
["X21-380850",null,"2021-08-02","2021-09-17",null,null,null,"Sta 1: Unit 1A","100","0","Overhaul","This project will require a unit outage, which will limit throughput through the station and result in restrictions based on customer nominations.","SOP","Potential out of path restrictions may be at risk.",null,null,null,null,null,null,null,null,null,null,"X21-380850",0,0,0,0,0,0,0,0]
["X21-380848",null,"2021-07-12","2021-09-10",null,null,null,"Sta 1: Unit 8A","100","0","Overhaul","This project will require a unit outage, which will limit throughput through the station and result in restrictions based on customer nominations.","SOP","Potential out of path restrictions may be at risk.",null,null,null,null,null,null,null,null,null,null,"X21-380848",0,0,0,0,0,0,0,0]
["X20-957184","***","2021-07-26","2021-07-31","Added",null,null,"Station 3A","100","0","Annual ESD test","This project will require a station outage, which will limit throughput through the station and result in restrictions based on customer nominations.","SIP","Potential in the path restrictions may be at risk.",null,null,null,null,null,null,null,null,null,null,"X20-957184",1,0,0,0,0,0,0,0]
["X21-467805","***","2021-07-26","2021-07-31","Added",null,null,"Sta 3A: Unit 1A","100","0","20k Inspection","This project will require a unit outage, which will limit throughput through the station and result in restrictions based on customer nominations.","SIP","Potential in the path restrictions may be at risk.",null,null,null,null,null,null,null,null,null,null,"X21-467805",1,0,0,0,0,0,0,0]
["X19-761902",null,"2022-02-14","2022-02-25",null,null,null,"MLV 5-2 to MLV 4-2","100","0","Pipe Replacement","This project may require taking the pipeline section out of service which could limit throughput and result in restrictions based on customer nominations.","SOP","Potential out of path restrictions may be at risk.",null,null,null,null,null,null,null,null,null,null,"X19-761902",0,0,0,0,0,0,0,0]
["X21-35982",null,"2022-09-01","2022-10-01",null,null,null,"MLV 4-1 to MLV 5-1","100","0","Pressure Weld Replacement","This project will require taking the pipeline section out of service which could limit throughput and result in restrictions based on customer nominations.","SIP","Potential in the path restrictions may be at risk.",null,null,null,null,null,null,null,null,null,null,"X21-35982",0,0,0,0,0,0,0,0]
["X21-384762","***","2021-06-01","2021-06-02","Project Change",null,null,"Sta 11A: Unit 1A","100","0","Water Wash & Inspection","This project will require a unit outage, which will limit throughput through the station and result in restrictions based on customer nominations.","SIP","Potential in the path restrictions may be at risk.",null,null,null,null,null,null,null,null,null,null,"X21-384762",0,0,0,0,0,1,1,0]
["X21-44679",null,"2021-07-19","2021-08-06",null,null,null,"MLV 11-3 to MLV 9-3","100","0","Anomaly Remediation","This project may require taking the pipeline section out of service which could limit throughput and result in restrictions based on customer nominations.","SOP","Potential out of path restrictions may be at risk.",null,null,null,null,null,null,null,null,null,null,"X21-44679",0,0,0,0,0,0,0,0]
["X21-35981",null,"2022-08-01","2022-09-01",null,null,null,"MLV 12-1 to MLV 13-1","100","0","Pressure Weld Replacement","This project will require taking the pipeline section out of service which could limit throughput and result in restrictions based on customer nominations.","SIP","Potential in the path restrictions may be at risk.",null,null,null,null,null,null,null,null,null,null,"X21-35981",0,0,0,0,0,0,0,0]
["X21-384526",null,"2021-06-21","2021-06-25",null,null,null,"Sta 17: Unit 1C","100","0","Regenerator Inspection","This project will require a unit outage, which will limit throughput through the station and result in restrictions based on customer nominations.","SOP","Potential out of path restrictions may be at risk.",null,null,null,null,null,null,null,null,null,null,"X21-384526",0,0,0,0,0,0,0,0]
["X21-384528","***","2021-06-28","2021-07-02","Project Change","6/28/21","6/28/21","Sta 17: Unit 2C","100","0","Regenerator Inspection","This project will require a unit outage, which will limit throughput through the station and result in restrictions based on customer nominations.","SOP","Potential out of path restrictions may be at risk.",null,null,null,null,null,null,null,null,null,null,"X21-384528",0,0,1,0,0,0,0,0]
["X21-22722",null,"2021-10-04","2021-11-12",null,null,null,"Sta 17: Unit 2C","100","0","Overhaul","This project will require a unit outage, which will limit throughput through the station and result in restrictions based on customer nominations.","SOP","Potential out of path restrictions may be at risk.",null,null,null,null,null,null,null,null,null,null,"X21-22722",0,0,0,0,0,0,0,0]
["X21-44681",null,"2021-06-07","2021-07-16",null,null,null,"MLV 17-2 to MLV 9-2","100","0","Anomaly Remediation","This project may require taking the pipeline section out of service which could limit throughput and result in restrictions based on customer nominations.","SOP","Potential out of path restrictions may be at risk.",null,null,null,null,null,null,null,null,null,null,"X21-44681",0,0,0,0,0,0,0,0]
["X21-295506",null,"2021-06-15","2021-06-15",null,null,null,"MLV 25-1 to MLV 24-1","100","0","Maintenance Pig","This activity will require operating at controlled flow rates. Customers may experience pressure fluctuations; however, no other service impact is anticipated.","SOP","Potential out of path restrictions may be at risk.",null,null,null,null,null,null,null,null,null,null,"X21-295506",0,0,0,0,0,0,0,0]
["X21-295511",null,"2021-06-17","2021-06-17",null,null,null,"MLV 25-2 to MLV 24-2","100","0","Maintenance Pig","This activity will require operating at controlled flow rates. Customers may experience pressure fluctuations; however, no other service impact is anticipated.","SOP","Potential out of path restrictions may be at risk.",null,null,null,null,null,null,null,null,null,null,"X21-295511",0,0,0,0,0,0,0,0]
["X21-295512",null,"2021-06-22","2021-06-22",null,null,null,"MLV 25-3 to MLV 24-3","100","0","Maintenance Pig","This activity will require operating at controlled flow rates. Customers may experience pressure fluctuations; however, no other service impact is anticipated.","SOP","Potential out of path restrictions may be at risk.",null,null,null,null,null,null,null,null,null,null,"X21-295512",0,0,0,0,0,0,0,0]
["X21-295438",null,"2021-10-04","2021-10-14",null,null,null,"Sta 25: Unit 1C","100","0","Stator Replacement","This project will require a unit outage, which will limit throughput through the station and result in restrictions based on customer nominations.","SOP","Potential out of path restrictions may be at risk.",null,null,null,null,null,null,null,null,null,null,"X21-295438",0,0,0,0,0,0,0,0]
["X21-295452",null,"2021-08-02","2021-08-06",null,null,null,"Sta 25: Unit 1D","100","0","Motor PM","This project will require a unit outage, which will limit throughput through the station and result in restrictions based on customer nominations.","SOP","Potential out of path restrictions may be at risk.",null,null,null,null,null,null,null,null,null,null,"X21-295452",0,0,0,0,0,0,0,0]
["X21-295442",null,"2021-09-07","2021-09-10",null,null,null,"Sta 25: Unit 1D","100","0","Exciter Panel Replacement","This project will require a unit outage, which will limit throughput through the station and result in restrictions based on customer nominations.","SOP","Potential out of path restrictions may be at risk.",null,null,null,null,null,null,null,null,null,null,"X21-295442",0,0,0,0,0,0,0,0]
["X21-295453",null,"2021-08-09","2021-08-13",null,null,null,"Sta 25: Unit 2D","100","0","Motor PM","This project will require a unit outage, which will limit throughput through the station and result in restrictions based on customer nominations.","SOP","Potential out of path restrictions may be at risk.",null,null,null,null,null,null,null,null,null,null,"X21-295453",0,0,0,0,0,0,0,0]
["X21-295444",null,"2021-09-14","2021-09-17",null,null,null,"Sta 25: Unit 2D","100","0","Exciter Panel Replacement","This project will require a unit outage, which will limit throughput through the station and result in restrictions based on customer nominations.","SOP","Potential out of path restrictions may be at risk.",null,null,null,null,null,null,null,null,null,null,"X21-295444",0,0,0,0,0,0,0,0]
["X21-22677",null,"2021-02-22","2021-07-15",null,null,null,"MLV 25-1to MLV 27-1A","100","0","Pressure Weld Replacement","This project will require taking the pipeline section out of service which could limit throughput and result in restrictions based on customer nominations.  The meter listed below will be shut-in during the project.","SIP","Potential in the path restrictions may be at risk.","412862 SOCOASTP/TGP COLDSPRING LATERAL: RI",null,null,null,null,null,null,null,null,null,"X21-22677",0,0,0,0,0,0,0,0]
["X21-67835",null,"2021-07-15","2021-08-15",null,null,null,"MLV 25-2 to MLV 26-2","100","0","Pressure Weld Replacement","This project will require taking the pipeline section out of service which could limit throughput and result in restrictions based on customer nominations.","SIP","Potential in the path restrictions may be at risk.",null,null,null,null,null,null,null,null,null,null,"X21-67835",0,0,0,0,0,0,0,0]
["X21-67836",null,"2021-08-15","2021-09-15",null,null,null,"MLV 25-3 to MLV 26-3","100","0","Pressure Weld Replacement","This project will require taking the pipeline section out of service which could limit throughput and result in restrictions based on customer nominations.","SIP","Potential in the path restrictions may be at risk.",null,null,null,null,null,null,null,null,null,null,"X21-67836",0,0,0,0,0,0,0,0]
["X21-458748","***","2021-05-18","2021-05-18","Added",null,null,"MLV 32-3 to MLV 25-3","100","0","Maintenance Pig","This activity will require operating at controlled flow rates. Customers may experience pressure fluctuations; however, no other service impact is anticipated.","SOP","Potential out of path restrictions may be at risk.",null,null,null,null,null,null,null,null,null,null,"X21-458748",1,0,0,0,0,0,0,0]
["X21-231767",null,"2021-07-01","2021-08-15",null,null,null,"MLV 36-1 to MLV 37-1","100","0","Wrinkle Bend Removal & Mod Pig Traps","This project will require taking the pipeline section out of service which could limit throughput and result in restrictions based on customer nominations.","SOP","Potential out of path restrictions may be at risk.",null,null,null,null,null,null,null,null,null,null,"X21-231767",0,0,0,0,0,0,0,0]
["X21-271936",null,"2021-09-01","2021-09-30",null,null,null,"Sta 40: Unit 1C","100","1","Overhaul","This project will require a unit outage, which will limit throughput through the station and result in restrictions based on customer nominations.","SOP","Potential out of path restrictions may be at risk.",null,null,null,null,null,null,null,null,null,null,"X21-271936",0,0,0,0,0,0,0,0]
["X21-27120",null,"2021-01-19","2021-06-04",null,null,null,"MLV 40-1D to MLV 47-1S","100","0","Anomaly Remediation","This project will require taking the pipeline section out of service which could limit throughput and result in restrictions based on customer nominations.   The meter listed below will be shut-in during the project.","SIP","Potential in the path restrictions may be at risk.","412809 CRTXLIG/TGP CLEAR LAKE NO. 1: RIP 4",null,null,null,null,null,null,null,null,null,"X21-27120",0,0,0,0,0,0,0,0]
["X21-458715","***","2021-05-20","2021-05-20","Added",null,null,"MLV 40-2 to MLV 47-2","100","1","Maintenance Pig","This activity will require operating at controlled flow rates. Customers may experience pressure fluctuations; however, no other service impact is anticipated.","SOP","Potential out of path restrictions may be at risk.",null,null,null,null,null,null,null,null,null,null,"X21-458715",1,0,0,0,0,0,0,0]
["X21-44561",null,"2021-10-27","2021-11-04",null,null,null,"MLV 40-2S to MLV 32-2D","100","0","PIG Run - Cleaning 10/27 - 10/29, Gauge 10/29, DEF 11/2, MDS 11/4","This activity will require operating at controlled flow rates. Customers may experience pressure fluctuations; however, no other service impact is anticipated.","SOP","Potential out of path restrictions may be at risk.",null,null,null,null,null,null,null,null,null,null,"X21-44561",0,0,0,0,0,0,0,0]
["X21-44682","***","2021-02-10","2021-05-14","Completed",null,null,"MLV 40-3S to MLV 32-3D","100","0","Anomaly Remediation","This project will require taking the pipeline section out of service which could limit throughput and result in restrictions based on customer nominations.","SIP","Potential in the path restrictions may be at risk.",null,null,null,null,null,null,null,null,null,null,"X21-44682",1,0,0,0,0,0,0,0]
["X21-55858",null,"2021-10-12","2021-10-14",null,null,null,"MLV 40-3D TO MLV 47-3S","100","1","PIG Run - Cleaning 10/12, Gauge 10/13, MDS 10/14","This activity will require operating at controlled flow rates. Customers may experience pressure fluctuations; however, no other service impact is anticipated.","SOP","Potential out of path restrictions may be at risk.",null,null,null,null,null,null,null,null,null,null,"X21-55858",0,0,0,0,0,0,0,0]
["X21-67838","***","2021-05-04","2021-05-11","Completed",null,null,"Bear Creek Storage","100","1","Shut-in Test","This project will require the facility outage, which will limit throughput through the station and result in restrictions based on customer nominations.  The meter listed below will be shut-in during the project.","SOP","Potential out of path restrictions may be at risk.","460017 STORAGE – BEAR CREEK",null,null,null,null,null,null,null,null,null,"X21-67838",1,0,0,0,0,0,0,0]
["X21-67839",null,"2021-10-19","2021-10-25",null,null,null,"Bear Creek Storage","100","1","Shut-in Test","This project will require the facility outage, which will limit throughput through the station and result in restrictions based on customer nominations.  The meter listed below will be shut-in during the project.","SOP","Potential out of path restrictions may be at risk.","460017 STORAGE – BEAR CREEK",null,null,null,null,null,null,null,null,null,"X21-67839",0,0,0,0,0,0,0,0]
["X21-339804",null,"2021-06-07","2021-07-16",null,null,null,"MLVS 46-2","100","1","Pipe Replacement","This project will require taking the pipeline section out of service which could limit throughput and result in restrictions based on customer nominations.","SOP","Potential out of path restrictions may be at risk.",null,null,null,null,null,null,null,null,null,null,"X21-339804",0,0,0,0,0,0,0,0]
["X21-131158",null,"2021-09-13","2021-09-18",null,null,null,"MLVS 47-3","100","1","Pipe Replacement","This project will require taking the pipeline section out of service which could limit throughput and result in restrictions based on customer nominations.","SOP","Potential out of path restrictions may be at risk.",null,null,null,null,null,null,null,null,null,null,"X21-131158",0,0,0,0,0,0,0,0]
["X21-31969",null,"2021-04-19","2021-05-29",null,null,null,"MLV 47-4B to MLV 47-4A","100","1","Pressure Test","This project will require taking the pipeline section out of service which could limit throughput and result in restrictions based on customer nominations.","SOP","Potential out of path restrictions may be at risk.",null,null,null,null,null,null,null,null,null,null,"X21-31969",0,0,0,0,0,0,0,0]
["X20-1050028",null,"2021-08-02","2021-09-17",null,null,null,"MLV 53-4 to MLV 53-4B","100","1","Pressure Test","This project will require taking the pipeline section out of service which could limit throughput and result in restrictions based on customer nominations.","SOP","Potential out of path restrictions may be at risk.",null,null,null,null,null,null,null,null,null,null,"X20-1050028",0,0,0,0,0,0,0,0]
["X21-126288",null,"2021-08-02","2021-08-13",null,null,null,"MLV 47-4D to MLV 48-4","100","1","High Priority Anomaly Digs","This project will require taking the pipeline section out of service which could limit throughput and result in restrictions based on customer nominations.","SOP","Potential out of path restrictions may be at risk.",null,null,null,null,null,null,null,null,null,null,"X21-126288",0,0,0,0,0,0,0,0]
["X21-55862",null,"2021-08-10","2021-08-12",null,null,null,"MLV 54-1 to 63-1","100","1","Pig Run - Cleaning Gauge 8/10, AFD 8/12","This activity will require operating at controlled flow rates. Customers may experience pressure fluctuations; however, no other service impact is anticipated.","SOP","Potential out of path restrictions may be at risk.",null,null,null,null,null,null,null,null,null,null,"X21-55862",0,0,0,0,0,0,0,0]
["X21-44641",null,"2021-08-02","2021-09-03",null,null,null,"MLV 54-2D to MLV 63-2S","100","1","Anomaly Remediation","This project may require taking the pipeline section out of service which could limit throughput and result in restrictions based on customer nominations.","SOP","Potential out of path restrictions may be at risk.",null,null,null,null,null,null,null,null,null,null,"X21-44641",0,0,0,0,0,0,0,0]
["X21-220808",null,"2021-06-08","2021-07-27",null,null,null,"MLV 58-3 to MLV 60-3","100","1","Make Piggable","This project will require taking the pipeline section out of service which could limit throughput and result in restrictions based on customer nominations.","SOP","Potential out of path restrictions may be at risk.",null,null,null,null,null,null,null,null,null,null,"X21-220808",0,0,0,0,0,0,0,0]
["X21-78592",null,"2021-09-07","2021-09-09",null,null,null,"MLV 63-3 to MLV 54-3","100","1","Cleaning & DEF 9/7/21, MDS 9/9/21","This activity will require operating at controlled flow rates. Customers may experience pressure fluctuations; however, no other service impact is anticipated.","SOP","Potential out of path restrictions may be at risk.",null,null,null,null,null,null,null,null,null,null,"X21-78592",0,0,0,0,0,0,0,0]
["X21-171530",null,"2021-05-18","2021-05-19",null,null,null,"Station 71","100","1","Annual ESD test","This project will require a station outage, which will limit throughput through the station and result in restrictions based on customer nominations.","SOP","Potential out of path restrictions may be at risk.",null,null,null,null,null,null,null,null,null,null,"X21-171530",0,0,0,0,0,0,0,0]
["X21-365450",null,"2021-07-27","2021-07-29",null,null,null,"Sta 71","100","1","Arc Flash Mitigation","This project will require a station outage, which will limit throughput through the station and result in restrictions based on customer nominations.","SOP","Potential out of path restrictions may be at risk.",null,null,null,null,null,null,null,null,null,null,"X21-365450",0,0,0,0,0,0,0,0]
["X21-113731",null,"2021-07-19","2021-07-25",null,null,null,"MLV 71-1D TO MLV 72-1","100","1","Drip Replacement","This project will require taking the pipeline section out of service which could limit throughput and result in restrictions based on customer nominations.","SOP","Potential out of path restrictions may be at risk.",null,null,null,null,null,null,null,null,null,null,"X21-113731",0,0,0,0,0,0,0,0]
["X21-408111",null,"2021-05-04","2021-06-08",null,null,null,"MLV 71-2 to MLV 79-2","100","1","Anomaly Remediation","This project may require taking the pipeline section out of service which could limit throughput and result in restrictions based on customer nominations.","SOP","Potential out of path restrictions may be at risk.",null,null,null,null,null,null,null,null,null,null,"X21-408111",0,0,0,0,0,0,0,0]
["X20-957254",null,"2021-05-18","2021-05-18",null,null,null,"Station 79","100","1","Annual ESD test","This project will require a station outage, which will limit throughput through the station and result in restrictions based on customer nominations.","SOP","Potential out of path restrictions may be at risk.",null,null,null,null,null,null,null,null,null,null,"X20-957254",0,0,0,0,0,0,0,0]
["X21-292529",null,"2021-05-10","2021-06-21",null,null,null,"MLV 79-1 to MLV 81-1","100","1","Anomaly Remediation","This activity will require operating at controlled flow rates. The following meter may experience pressure fluctuations; however, no other service impact is anticipated.","SOP","Potential out of path restrictions may be at risk.","421016 CENTRVIL/TGP TURNEY PRISON HICKMAN",null,null,null,null,null,null,null,null,null,"X21-292529",0,0,0,0,0,0,0,0]
["X21-63146",null,"2021-08-17","2021-08-19",null,null,null,"MLV 79-2D TO MLV 82-2","100","1","Pig Runs - AFD 8/17/21, EMAT 8/19/21","This activity will require operating at controlled flow rates. Customers may experience pressure fluctuations; however, no other service impact is anticipated.","SOP","Potential out of path restrictions may be at risk.",null,null,null,null,null,null,null,null,null,null,"X21-63146",0,0,0,0,0,0,0,0]
["X21-63152","***","2021-05-11","2021-05-12","Completed",null,null,"MLV 79-3D TO MLV 82-3","100","1","Pig Runs - Cleaning/Gauge 5/11/21, MFL-BH 5/12/21","This activity will require operating at controlled flow rates. Customers may experience pressure fluctuations; however, no other service impact is anticipated.","SOP","Potential out of path restrictions may be at risk.",null,null,null,null,null,null,null,null,null,null,"X21-63152",1,0,0,0,0,0,0,0]
["X21-63167",null,"2021-08-12","2021-08-26",null,null,null,"MLV 82-1C TO MLV 87-1S","100","1","Pig Runs - Cleaning/Gauge 8/12/21, AFD 8/24/21, EMAT 8/26/21","This activity will require operating at controlled flow rates. Customers may experience pressure fluctuations; however, no other service impact is anticipated.","SOP","Potential out of path restrictions may be at risk.",null,null,null,null,null,null,null,null,null,null,"X21-63167",0,0,0,0,0,0,0,0]
["X21-63169",null,"2021-05-26","2021-05-26",null,null,null,"MLV 82-2C TO MLV 87-2S","100","1","Pig Runs - AFD-Caliper 5/26/21","This activity will require operating at controlled flow rates. Customers may experience pressure fluctuations; however, no other service impact is anticipated.","SOP","Potential out of path restrictions may be at risk.",null,null,null,null,null,null,null,null,null,null,"X21-63169",0,0,0,0,0,0,0,0]
["X20-957255",null,"2021-08-11","2021-08-11",null,null,null,"Station 87","100","2","Annual ESD test","This project will require a station outage, which will limit throughput through the station and result in restrictions based on customer nominations.","SOP","Potential out of path restrictions may be at risk.",null,null,null,null,null,null,null,null,null,null,"X20-957255",0,0,0,0,0,0,0,0]
["X21-386358",null,"2021-05-05","2021-05-18",null,null,null,"Sta 87: Unit 5C","100","2","Jacket Water","This project will require a unit outage, which will limit throughput through the station and result in restrictions based on customer nominations.","SOP","Potential out of path restrictions may be at risk.",null,null,null,null,null,null,null,null,null,null,"X21-386358",0,0,0,0,0,0,0,0]
["X21-386359",null,"2021-06-01","2021-06-07",null,null,null,"Sta 87","100","2","Building D Scrubber Filter","This project will require a unit outage, which will limit throughput through the station and result in restrictions based on customer nominations.","SOP","Potential out of path restrictions may be at risk.",null,null,null,null,null,null,null,null,null,null,"X21-386359",0,0,0,0,0,0,0,0]
["X21-295343",null,"2021-06-01","2021-06-27",null,null,null,"MLV 87-2 to MLV 96-2","100","2","Anomaly Remediation","This project may require taking the pipeline section out of service which could limit throughput and result in restrictions based on customer nominations.","SOP","Potential out of path restrictions may be at risk.",null,null,null,null,null,null,null,null,null,null,"X21-295343",0,0,0,0,0,0,0,0]
["X20-957258",null,"2021-07-13","2021-07-14",null,null,null,"Station 96","100","2","Annual ESD test","This project will require a station outage, which will limit throughput through the station and result in restrictions based on customer nominations.","SOP","Potential out of path restrictions may be at risk.",null,null,null,null,null,null,null,null,null,null,"X20-957258",0,0,0,0,0,0,0,0]
["X21-31768","***","2021-05-26","2021-05-26","Added",null,null,"Sta 96: Unit 1C","100","2","Gas Scrubber Filter Inspection","This project will require a unit outage, which will limit throughput through the station and result in restrictions based on customer nominations.","SOP","Potential out of path restrictions may be at risk.",null,null,null,null,null,null,null,null,null,null,"X21-31768",1,0,0,0,0,0,0,0]
["X21-31762","***","2021-05-27","2021-05-27","Added",null,null,"Sta 96: Unit 2C","100","2","Gas Scrubber Filter Inspection","This project will require a unit outage, which will limit throughput through the station and result in restrictions based on customer nominations.","SOP","Potential out of path restrictions may be at risk.",null,null,null,null,null,null,null,null,null,null,"X21-31762",1,0,0,0,0,0,0,0]
["X21-31765","***","2021-05-24","2021-05-24","Added",null,null,"Sta 96: Unit 1D","100","2","Gas Scrubber Filter Inspection","This project will require a unit outage, which will limit throughput through the station and result in restrictions based on customer nominations.","SOP","Potential out of path restrictions may be at risk.",null,null,null,null,null,null,null,null,null,null,"X21-31765",1,0,0,0,0,0,0,0]
["X21-406257",null,"2021-06-21","2021-06-25",null,null,null,"Sta. 96","100","2","Substation Inspection","This project will require a building outage, which will limit throughput through the station and result in restrictions based on customer nominations.","SOP","Potential out of path restrictions may be at risk.",null,null,null,null,null,null,null,null,null,null,"X21-406257",0,0,0,0,0,0,0,0]
["X21-447754","***","2021-05-11","2021-05-11","Completed",null,null,"Sta 96: Unit 2D","100","2","Packing Leak","This project will require a unit outage, which will limit throughput through the station and result in restrictions based on customer nominations.","SOP","Potential out of path restrictions may be at risk.",null,null,null,null,null,null,null,null,null,null,"X21-447754",1,0,0,0,0,0,0,0]
["X21-31731","***","2021-05-25","2021-05-25","Added",null,null,"Sta 96: Unit 2D","100","2","Gas Scrubber Filter Inspection","This project will require a unit outage, which will limit throughput through the station and result in restrictions based on customer nominations.","SOP","Potential out of path restrictions may be at risk.",null,null,null,null,null,null,null,null,null,null,"X21-31731",1,0,0,0,0,0,0,0]
["X19-703248",null,"2019-08-01","2021-12-31",null,null,null,"MLV 106-1 to MLV 96-1","100","2","Pressure Restriction from ILI","This project may require taking the pipeline section out of service which could limit throughput and result in restrictions based on customer nominations.","SOP","Potential out of path restrictions may be at risk.",null,null,null,null,null,null,null,null,null,null,"X19-703248",0,0,0,0,0,0,0,0]
["X21-31692",null,"2021-02-15","2021-06-17",null,null,null,"MLV 103-1 and MLV 105-1","100","2","Anomaly Remediation","This project will require taking the pipeline section out of service which could limit throughput and result in restrictions based on customer nominations.","SOP","Potential out of path restrictions may be at risk.",null,null,null,null,null,null,null,null,null,null,"X21-31692",0,0,0,0,0,0,0,0]
["X21-29038",null,"2021-03-02","2021-07-01",null,null,null,"Sta 106: Unit 14B","100","2","Re-Grout","This project will require a unit outage, which will limit throughput through the station and result in restrictions based on customer nominations.","SOP","Potential out of path restrictions may be at risk.",null,null,null,null,null,null,null,null,null,null,"X21-29038",0,0,0,0,0,0,0,0]
["X21-295342",null,"2021-04-08","2021-05-31",null,null,null,"MLV 106-2 to MLV 110-2","100","2","Anomaly Remediation","This activity will require operating at controlled flow rates. The following meter may experience pressure fluctuations; however, no other service impact is anticipated.","SOP","Potential out of path restrictions may be at risk.","420038 MOREHEAD/TGP MOREHEAD KY ROWAN",null,null,null,null,null,null,null,null,null,"X21-295342",0,0,0,0,0,0,0,0]
["X21-469452","***","2021-06-18","2021-06-26","Added",null,null,"MLV 107-2 to MLV 106-2","100","2","Drip Replacement","This project will require taking the pipeline section out of service which could limit throughput and result in restrictions based on customer nominations.","SOP","Potential out of path restrictions may be at risk.",null,null,null,null,null,null,null,null,null,null,"X21-469452",1,0,0,0,0,0,0,0]
["X20-1105768",null,"2021-06-11","2021-08-24",null,null,null,"MLVS 109-3","100","2","Class Change / Pipe Replacement","This project will require taking the pipeline section out of service which could limit throughput and result in restrictions based on customer nominations.","SOP","Potential out of path restrictions may be at risk.",null,null,null,null,null,null,null,null,null,null,"X20-1105768",0,0,0,0,0,0,0,0]
["X20-957261",null,"2021-06-14","2021-06-18",null,null,null,"Station 110","100","2","Annual ESD test & Substation Inspection","This project will require a station outage, which will limit throughput through the station and result in restrictions based on customer nominations.","SIP","Potential in the path restrictions may be at risk.",null,null,null,null,null,null,null,null,null,null,"X20-957261",0,0,0,0,0,0,0,0]
["X20-957271","***","2021-06-10","2021-06-11",null,null,null,"Station 114","100","3","Annual ESD test","This project will require a station outage, which will limit throughput through the station and result in restrictions based on customer nominations.","SIP","Potential in the path restrictions may be at risk.",null,null,null,null,null,null,null,null,null,null,"X20-957271",0,0,0,0,0,1,0,0]
["X21-40299","***","2021-06-07","2021-06-09","Project Change",null,null,"Sta 114: Unit 1D","100","3","Turbine Service and Filter Change Out","This project will require a unit outage, which will limit throughput through the station and result in restrictions based on customer nominations.","SOP","Potential out of path restrictions may be at risk.",null,null,null,null,null,null,null,null,null,null,"X21-40299",0,0,0,0,0,1,1,0]
["X21-40301",null,"2021-11-08","2021-11-10",null,null,null,"Sta 114: Unit 1D","100","3","Turbine Service and Filter Change Out","This project will require a unit outage, which will limit throughput through the station and result in restrictions based on customer nominations.","SOP","Potential out of path restrictions may be at risk.",null,null,null,null,null,null,null,null,null,null,"X21-40301",0,0,0,0,0,0,0,0]
["X21-63143","***","2021-04-06","2021-06-02","Project Change","4/06/21","5/21/21","MLV 117-2 TO MLV 114-2D","100","3","Pig Runs - Cleaning/Gauge 4/6/21, EMAT 5/4/21, AFD 6/2/21","This activity will require operating at controlled flow rates. Customers may experience pressure fluctuations; however, no other service impact is anticipated.","SIP","Potential in the path restrictions may be at risk.",null,null,null,null,null,null,null,null,null,null,"X21-63143",0,0,1,1,0,1,0,0]
["X21-40275",null,"2021-05-24","2021-05-25",null,null,null,"Sta. 118A","100","3","Annual ESD test","This project will require a station outage, which will limit throughput through the station and result in restrictions based on customer nominations.","SOP","Potential out of path restrictions may be at risk.",null,null,null,null,null,null,null,null,null,null,"X21-40275",0,0,0,0,0,0,0,0]
["X21-40271",null,"2021-05-26","2021-05-28",null,null,null,"Sta 118A: Unit 1A","100","3","Turbine Service and Filter Change Out","This project will require a unit outage, which will limit throughput through the station and result in restrictions based on customer nominations.","SOP","Potential out of path restrictions may be at risk.",null,null,null,null,null,null,null,null,null,null,"X21-40271",0,0,0,0,0,0,0,0]
["X21-40272",null,"2021-10-04","2021-10-06",null,null,null,"Sta 118A: Unit 1A","100","3","Turbine Service and Filter Change Out","This project will require a unit outage, which will limit throughput through the station and result in restrictions based on customer nominations.","SOP","Potential out of path restrictions may be at risk.",null,null,null,null,null,null,null,null,null,null,"X21-40272",0,0,0,0,0,0,0,0]
["X21-40296",null,"2021-05-20","2021-05-21",null,null,null,"Sta. 119A","100","3","Annual ESD test","This project will require a station outage, which will limit throughput through the station and result in restrictions based on customer nominations.","SIP","Potential in the path restrictions may be at risk.",null,null,null,null,null,null,null,null,null,null,"X21-40296",0,0,0,0,0,0,0,0]
["X21-40289",null,"2021-05-17","2021-05-19",null,null,null,"Sta 119A: Unit 1A","100","3","Turbine Service and Filter Change Out","This project will require a unit outage, which will limit throughput through the station and result in restrictions based on customer nominations.","SIP","Potential in the path restrictions may be at risk.",null,null,null,null,null,null,null,null,null,null,"X21-40289",0,0,0,0,0,0,0,0]
["X21-40293",null,"2021-11-01","2021-11-03",null,null,null,"Sta 119A: Unit 1A","100","3","Turbine Service and Filter Change Out","This project will require a unit outage, which will limit throughput through the station and result in restrictions based on customer nominations.","SOP","Potential out of path restrictions may be at risk.",null,null,null,null,null,null,null,null,null,null,"X21-40293",0,0,0,0,0,0,0,0]
["X20-957282",null,"2021-06-08","2021-06-09",null,null,null,"Station 200","200","4","Annual ESD test","This project will require a station outage, which will limit throughput through the station and result in restrictions based on customer nominations.","SIP","Potential in the path restrictions may be at risk.",null,null,null,null,null,null,null,null,null,null,"X20-957282",0,0,0,0,0,0,0,0]
["X21-441975",null,"2021-05-10","2021-05-14",null,null,null,"Sta 200: Unit 3A","200","4","Turbo Replacement","This project will require a unit outage, which will limit throughput through the station and result in restrictions based on customer nominations.","SOP","Potential out of path restrictions may be at risk.",null,null,null,null,null,null,null,null,null,null,"X21-441975",0,0,0,0,0,0,0,0]
["X21-28988",null,"2021-07-26","2021-10-01",null,null,null,"Sta 200: Unit 8A","200","4","Upper Block Replacement","This project will require a unit outage, which will limit throughput through the station and result in restrictions based on customer nominations.","SOP","Potential out of path restrictions may be at risk.",null,null,null,null,null,null,null,null,null,null,"X21-28988",0,0,0,0,0,0,0,0]
["X21-28992",null,"2021-06-14","2021-06-18",null,null,null,"Sta 200: Unit 1B","200","4","Turbo Replacement","This project will require a unit outage, which will limit throughput through the station and result in restrictions based on customer nominations.","SOP","Potential out of path restrictions may be at risk.",null,null,null,null,null,null,null,null,null,null,"X21-28992",0,0,0,0,0,0,0,0]
["X20-957285",null,"2021-05-17","2021-05-21",null,null,null,"Station 204","200","4","Annual ESD test","This project will require a station outage, which will limit throughput through the station and result in restrictions based on customer nominations.","SIP","Potential in the path restrictions may be at risk.",null,null,null,null,null,null,null,null,null,null,"X20-957285",0,0,0,0,0,0,0,0]
["X21-233927",null,"2021-07-19","2021-07-20",null,null,null,"Sta 204","200","4","PECO Filter Change","This project will require a station outage, which will limit throughput through the station and result in restrictions based on customer nominations.","SIP","Potential in the path restrictions may be at risk.",null,null,null,null,null,null,null,null,null,null,"X21-233927",0,0,0,0,0,0,0,0]
["X21-458324","***","2021-06-21","2021-06-30","Added",null,null,"Sta 204: Unit 6A","200","4","Exhaust Manifold","This project will require a unit outage, which will limit throughput through the station and result in restrictions based on customer nominations.","SOP","Potential out of path restrictions may be at risk.",null,null,null,null,null,null,null,null,null,null,"X21-458324",1,0,0,0,0,0,0,0]
["X21-444654","***","2021-05-11","2021-05-12","Completed",null,null,"Sta 204: Unit 9A","200","4","Carbon Punch","This project will require a unit outage, which will limit throughput through the station and result in restrictions based on customer nominations.","SOP","Potential out of path restrictions may be at risk.",null,null,null,null,null,null,null,null,null,null,"X21-444654",1,0,0,0,0,0,0,0]
["X21-305343",null,"2021-04-26","2021-06-18",null,null,null,"Sta 204: Unit 11A","200","4","Compressor Cylinders and Pistons","This project will require a unit outage, which will limit throughput through the station and result in restrictions based on customer nominations.","SOP","Potential out of path restrictions may be at risk.",null,null,null,null,null,null,null,null,null,null,"X21-305343",0,0,0,0,0,0,0,0]
["X21-292492",null,"2021-10-03","2021-10-22",null,null,null,"MLV 204-2 to MLV 208-2","200","4","Anomaly Remediation","This project may require taking the pipeline section out of service which could limit throughput and result in restrictions based on customer nominations.","SOP","Potential out of path restrictions may be at risk.",null,null,null,null,null,null,null,null,null,null,"X21-292492",0,0,0,0,0,0,0,0]
["X21-292488",null,"2021-08-30","2021-09-18",null,null,null,"MLV 204-3 to MLV 208-3","200","4","Anomaly Remediation","This project may require taking the pipeline section out of service which could limit throughput and result in restrictions based on customer nominations.","SOP","Potential out of path restrictions may be at risk.",null,null,null,null,null,null,null,null,null,null,"X21-292488",0,0,0,0,0,0,0,0]
["X21-292513",null,"2021-10-25","2021-11-24",null,null,null,"MLV 205-1 to MLV 209-1","200","4","Anomaly Remediation","This project may require taking the pipeline section out of service which could limit throughput and result in restrictions based on customer nominations.","SOP","Potential out of path restrictions may be at risk.",null,null,null,null,null,null,null,null,null,null,"X21-292513",0,0,0,0,0,0,0,0]
["X20-957290",null,"2021-05-24","2021-05-28",null,null,null,"Station 209","200","4","Annual ESD test","This project will require a station outage, which will limit throughput through the station and result in restrictions based on customer nominations.","SIP","Potential in the path restrictions may be at risk.",null,null,null,null,null,null,null,null,null,null,"X20-957290",0,0,0,0,0,0,0,0]
["X21-233926",null,"2021-07-21","2021-07-22",null,null,null,"Sta 209","200","4","PECO Filter Change","This project will require a station outage, which will limit throughput through the station and result in restrictions based on customer nominations.","SIP","Potential in the path restrictions may be at risk.",null,null,null,null,null,null,null,null,null,null,"X21-233926",0,0,0,0,0,0,0,0]
["X21-444645",null,"2021-05-10","2021-05-14",null,null,null,"Sta 209: Unit 4A","200","4","Carbon Punch","This project will require a unit outage, which will limit throughput through the station and result in restrictions based on customer nominations.","SOP","Potential out of path restrictions may be at risk.",null,null,null,null,null,null,null,null,null,null,"X21-444645",0,0,0,0,0,0,0,0]
["X21-444647",null,"2021-05-17","2021-05-21",null,null,null,"Sta 209: Unit 5A","200","4","Carbon Punch","This project will require a unit outage, which will limit throughput through the station and result in restrictions based on customer nominations.","SOP","Potential out of path restrictions may be at risk.",null,null,null,null,null,null,null,null,null,null,"X21-444647",0,0,0,0,0,0,0,0]
["X21-118105",null,"2021-03-15","2021-07-09",null,null,null,"Sta 209: Unit 10A","200","4","Full Foundation Replacement","This project will require a unit outage, which will limit throughput through the station and result in restrictions based on customer nominations.","SOP","Potential out of path restrictions may be at risk.",null,null,null,null,null,null,null,null,null,null,"X21-118105",0,0,0,0,0,0,0,0]
["X21-292481",null,"2021-06-21","2021-07-18",null,null,null,"MLV 209-2 to MLV 214-2","200","4","Anomaly Remediation","This project may require taking the pipeline section out of service which could limit throughput and result in restrictions based on customer nominations.","SOP","Potential out of path restrictions may be at risk.",null,null,null,null,null,null,null,null,null,null,"X21-292481",0,0,0,0,0,0,0,0]
["X21-292485",null,"2021-09-19","2021-10-02",null,null,null,"MLV 209-4 to MLV 214-4","200","4","Anomaly Remediation","This project may require taking the pipeline section out of service which could limit throughput and result in restrictions based on customer nominations.","SOP","Potential out of path restrictions may be at risk.",null,null,null,null,null,null,null,null,null,null,"X21-292485",0,0,0,0,0,0,0,0]
["X21-31986",null,"2021-06-09","2021-07-08",null,null,null,"MLVS 213-1","200","4","Class Change","This project will require taking the pipeline section out of service which could limit throughput and result in restrictions based on customer nominations.","SOP","Potential out of path restrictions may be at risk.",null,null,null,null,null,null,null,null,null,null,"X21-31986",0,0,0,0,0,0,0,0]
["X21-305546",null,"2021-08-23","2021-09-22",null,null,null,"MLVS 213-1","200","4","Class Change","This project will require taking the pipeline section out of service which could limit throughput and result in restrictions based on customer nominations.","SOP","Potential out of path restrictions may be at risk.",null,null,null,null,null,null,null,null,null,null,"X21-305546",0,0,0,0,0,0,0,0]
["X21-31987",null,"2021-07-23","2021-08-22",null,null,null,"MLVS 213-4","200","4","Class Change","This project will require taking the pipeline section out of service which could limit throughput and result in restrictions based on customer nominations.","SIP","Potential in the path restrictions may be at risk.",null,null,null,null,null,null,null,null,null,null,"X21-31987",0,0,0,0,0,0,0,0]
["X20-957295","***","2021-05-11","2021-05-14","Completed",null,null,"Station 214","200","4","Annual ESD test","This project will require a station outage, which will limit throughput through the station and result in restrictions based on customer nominations.","SIP","Potential in the path restrictions may be at risk.",null,null,null,null,null,null,null,null,null,null,"X20-957295",1,0,0,0,0,0,0,0]
["X21-305564",null,"2021-03-30","2021-05-14",null,null,null,"Sta 214: Unit 4A","200","4","Piston Rings","This project will require a unit outage, which will limit throughput through the station and result in restrictions based on customer nominations.","SOP","Potential out of path restrictions may be at risk.",null,null,null,null,null,null,null,null,null,null,"X21-305564",0,0,0,0,0,0,0,0]
["X21-253641",null,"2021-08-16","2021-08-28",null,null,null,"MLV 214-1 to MLV 219-1","200","4","Anomaly Remediation","This project may require taking the pipeline section out of service which could limit throughput and result in restrictions based on customer nominations.","SOP","Potential out of path restrictions may be at risk.",null,null,null,null,null,null,null,null,null,null,"X21-253641",0,0,0,0,0,0,0,0]
["X21-253635",null,"2021-07-19","2021-08-14",null,null,null,"MLV 214-2 to MLV 219-2","200","4","Anomaly Remediation","This project may require taking the pipeline section out of service which could limit throughput and result in restrictions based on customer nominations.","SOP","Potential out of path restrictions may be at risk.",null,null,null,null,null,null,null,null,null,null,"X21-253635",0,0,0,0,0,0,0,0]
["X21-253639","***","2021-05-10","2021-05-15","Completed",null,null,"MLV 214-3 to MLV 219-3","200","4","Anomaly Remediation","This project may require taking the pipeline section out of service which could limit throughput and result in restrictions based on customer nominations.","SOP","Potential out of path restrictions may be at risk.",null,null,null,null,null,null,null,null,null,null,"X21-253639",1,0,0,0,0,0,0,0]
["X21-253615","***","2021-05-03","2021-05-22","Project Change",null,null,"MLV 214-4 to MLV 219-4","200","4","Anomaly Remediation","This project may require taking the pipeline section out of service which could limit throughput and result in restrictions based on customer nominations.  The meters listed may be shut in during the project.","SIP","Potential in the path restrictions may be at risk.","47882 PENNANT/TGP BRINKER NO.2 COLUMBIANA\n47605 ARPPROD/TGP FIRESTONE HOMESTEAD COL\n420496 NFG/TGP SHARON PA MERCER\n53950 PENNANT/TGP FARMER BROTHERS COLUMBI",null,null,null,null,null,null,null,null,null,"X21-253615",0,0,0,0,0,1,1,0]
["X21-253638",null,"2021-08-23","2021-08-28",null,null,null,"MLVS 217A-100","200","4","Anomaly Remediation","This project may require taking the pipeline section out of service which could limit throughput and result in restrictions based on customer nominations.","SOP","Potential out of path restrictions may be at risk.",null,null,null,null,null,null,null,null,null,null,"X21-253638",0,0,0,0,0,0,0,0]
["X21-250272","***","2021-04-05","2021-05-07","Completed",null,null,"Sta 219: Unit 13A","200","4","Heat Exchanger","This project will require a unit outage, which will limit throughput through the station and result in restrictions based on customer nominations.","SOP","Potential out of path restrictions may be at risk.",null,null,null,null,null,null,null,null,null,null,"X21-250272",1,0,0,0,0,0,0,0]
["X21-135972","***","2021-08-09","2021-08-15","Project Change",null,null,"MLVS 236-1","200","5","Pipe Replacement","This project will require taking the pipeline section out of service which could limit throughput and result in restrictions based on customer nominations. The meters listed below will be shut-in during the project.","PIP","Potential in the path restrictions may be at risk.","412856 EMPIREPL/TGP CANANDAIGUA ONTARIO\n420617 DOMINION/TGP HOPEWELL SALES ONTARIO\n420526 HONEOYE/TGP UDP HONEOYE NEW YORK ON",null,null,null,null,null,null,null,null,null,"X21-135972",0,0,0,0,0,1,1,0]
["X21-36191",null,"2021-05-24","2021-06-03",null,null,null,"MLV 237-2 to MLV 245-2","200","5","Cleaning, Gage, Combo","This activity will require operating at controlled flow rates. Customers may experience pressure fluctuations; however, no other service impact is anticipated.","SIP","Potential in the path restrictions may be at risk.",null,null,null,null,null,null,null,null,null,null,"X21-36191",0,0,0,0,0,0,0,0]
["X20-957308",null,"2021-06-14","2021-06-15",null,null,null,"Station 241","200","5","Annual ESD test","This project will require a station outage, which will limit throughput through the station and result in restrictions based on customer nominations.","SOP","Potential out of path restrictions may be at risk.",null,null,null,null,null,null,null,null,null,null,"X20-957308",0,0,0,0,0,0,0,0]
["X21-233937",null,"2021-06-15","2021-06-17",null,null,null,"Sta 241","200","5","Station Filter Separator Inspections","This project will require a station outage, which will limit throughput through the station and result in restrictions based on customer nominations.","SOP","Potential out of path restrictions may be at risk.",null,null,null,null,null,null,null,null,null,null,"X21-233937",0,0,0,0,0,0,0,0]
["X21-233939",null,"2021-05-24","2021-06-03",null,null,null,"Sta 241: Unit 1A","200","5","Power Cylinder Liners and Heads","This project will require a unit outage, which will limit throughput through the station and result in restrictions based on customer nominations.","SOP","Potential out of path restrictions may be at risk.",null,null,null,null,null,null,null,null,null,null,"X21-233939",0,0,0,0,0,0,0,0]
["X21-233938",null,"2021-05-17","2021-05-20",null,null,null,"Sta 241: Unit 3A","200","5","Exchange Turbocharger and Water Pumps","This project will require a unit outage, which will limit throughput through the station and result in restrictions based on customer nominations.","SOP","Potential out of path restrictions may be at risk.",null,null,null,null,null,null,null,null,null,null,"X21-233938",0,0,0,0,0,0,0,0]
["X20-957310",null,"2021-05-17","2021-05-21",null,null,null,"Station 245","200","5","Annual ESD test","This project will require a station outage, which will limit throughput through the station and result in restrictions based on customer nominations.","SOP","Potential out of path restrictions may be at risk.",null,null,null,null,null,null,null,null,null,null,"X20-957310",0,0,0,0,0,0,0,0]
["X21-78644","***","2021-04-05","2021-05-28","Project Change","4/05/21","5/14/21","Sta 245: Unit 2B","200","5","50k Hr Overhaul","This project will require a unit outage, which will limit throughput through the station and result in restrictions based on customer nominations.","SOP","Potential out of path restrictions may be at risk.",null,null,null,null,null,null,null,null,null,null,"X21-78644",0,0,1,0,0,0,0,0]
["X21-36192","***","2021-05-03","2021-05-14","Completed",null,null,"MLV 245-1 to MLV 249-1","200","5","Anomaly Remediation","This project may require taking the pipeline section out of service which could limit throughput and result in restrictions based on customer nominations.","SOP","Potential out of path restrictions may be at risk.",null,null,null,null,null,null,null,null,null,null,"X21-36192",1,0,0,0,0,0,0,0]
["X21-36195","***","2021-05-24","2021-06-12","Project Change","5/31/21","6/19/21","MLV 246 Crossover","200","5","ECDA","This project may require taking the pipeline section out of service which could limit throughput and result in restrictions based on customer nominations.","SOP","Potential out of path restrictions may be at risk.",null,null,null,null,null,null,null,null,null,null,"X21-36195",0,1,1,0,0,0,0,0]
["X21-253292",null,"2021-07-06","2021-07-12",null,null,null,"Sta 249: Unit 1A","200","5","HPFI Controls Replacement","This project will require a unit outage, which will limit throughput through the station and result in restrictions based on customer nominations.","SOP","Potential out of path restrictions may be at risk.",null,null,null,null,null,null,null,null,null,null,"X21-253292",0,0,0,0,0,0,0,0]
["X21-224827",null,"2021-09-20","2021-10-01",null,null,null,"Sta 249: Unit 1A","200","5","Air Manifold Replacement & Crankcase Inspection","This project will require a unit outage, which will limit throughput through the station and result in restrictions based on customer nominations.","SOP","Potential out of path restrictions may be at risk.",null,null,null,null,null,null,null,null,null,null,"X21-224827",0,0,0,0,0,0,0,0]
["X20-957314",null,"2021-05-24","2021-05-24",null,null,null,"Station 254","200","5","Annual ESD test","This project will require a station outage, which will limit throughput through the station and result in restrictions based on customer nominations.","SOP","Potential out of path restrictions may be at risk.",null,null,null,null,null,null,null,null,null,null,"X20-957314",0,0,0,0,0,0,0,0]
["X21-78621",null,"2021-05-24","2021-06-11",null,null,null,"Sta 254: Unit 2B","200","5","Turbine Exchange","This project will require a station outage, which will limit throughput through the station and result in restrictions based on customer nominations.","SOP","Potential out of path restrictions may be at risk.",null,null,null,null,null,null,null,null,null,null,"X21-78621",0,0,0,0,0,0,0,0]
["X21-220767",null,"2021-07-12","2021-07-30",null,null,null,"Sta 261","200","6","Station Outage for Line Tie-In","This project will require a station outage, which will limit throughput through the station and result in restrictions based on customer nominations. The meter listed below will be shut-in during the project.","SOP","Potential out of path restrictions may be at risk.","420901 BERKPWR/TGP BERKSHIRE POWER SALES H",null,null,null,null,null,null,null,null,null,"X21-220767",0,0,0,0,0,0,0,0]
["X19-653349",null,"2021-04-19","2021-08-30",null,null,null,"Sta 261: Unit Replacement","200","6","Isolate systems from 1D (air compressor, generator, fuel gas, et al)","This project will require a station outage, which will limit throughput through the station and result in restrictions based on customer nominations.","SOP","Potential out of path restrictions may be at risk.",null,null,null,null,null,null,null,null,null,null,"X19-653349",0,0,0,0,0,0,0,0]
["X20-1034818",null,"2021-10-16","2021-10-24",null,null,null,"Sta. 265E","200","6","Fall Outage","This project will require a station outage, which will limit throughput through the station and result in restrictions based on customer nominations.","SOP","Potential out of path restrictions may be at risk.",null,null,null,null,null,null,null,null,null,null,"X20-1034818",0,0,0,0,0,0,0,0]
["X20-1031952",null,"2022-04-02","2022-04-18",null,null,null,"Sta 265: Unit 1A","200","6","Controls Upgrade","This project will require a unit outage, which will limit throughput through the station and result in restrictions based on customer nominations.","SOP","Potential out of path restrictions may be at risk.",null,null,null,null,null,null,null,null,null,null,"X20-1031952",0,0,0,0,0,0,0,0]
["X20-1105628",null,"2021-06-14","2021-06-27",null,null,null,"MLV 265E-101 to MLV 265E-105","200","6","Anomaly Remediation","This project may require taking the pipeline section out of service which could limit throughput and result in restrictions based on customer nominations. The meters listed will be shut in 6/21/21 to 6/27/21.","SOP","Potential out of path restrictions may be at risk.","420750 NARNGST/TGP CRANSTON SALES PROVIDEN\n420926 RISEC/TGP FPLE RISE PROVIDENCE",null,null,null,null,null,null,null,null,null,"X20-1105628",0,0,0,0,0,0,0,0]
["X20-1105603",null,"2021-06-15","2021-06-16",null,null,null,"266C-100 Blackstone Lateral No 2","200","6","Pig run: Cleaning/Gauge 6/15/21, AFD 6/16/21","This activity will require operating at controlled flow rates. Customers may experience pressure fluctuations; however, no other service impact is anticipated.","SOP","Potential out of path restrictions may be at risk.",null,null,null,null,null,null,null,null,null,null,"X20-1105603",0,0,0,0,0,0,0,0]
["X21-161606","***","2021-05-03","2021-05-21","Project Change","5/03/21","5/14/21","Sta 267","200","6","Repair Unit Valves","This project will require a station outage, which will limit throughput through the station and result in restrictions based on customer nominations.","SOP","Potential out of path restrictions may be at risk.",null,null,null,null,null,null,null,null,null,null,"X21-161606",0,0,1,0,0,0,0,0]
["X20-1105605",null,"2021-06-08","2021-06-09",null,null,null,"MLV 270B-101 to MLV 270B-103","200","6","Pig run: Cleaning/Gauge 6/8/21, AFD 6/9/21","This activity will require operating at controlled flow rates. Customers may experience pressure fluctuations; however, no other service impact is anticipated.","SOP","Potential out of path restrictions may be at risk.",null,null,null,null,null,null,null,null,null,null,"X20-1105605",0,0,0,0,0,0,0,0]
["X20-1105622",null,"2021-07-27","2021-07-28",null,null,null,"270B-300 Haverhill Lateral","200","6","Pig run: 7/27/21 Cleaning/Gauge, 7/28/21 AFD","This activity will require operating at controlled flow rates. Customers may experience pressure fluctuations; however, no other service impact is anticipated.","SOP","Potential out of path restrictions may be at risk.",null,null,null,null,null,null,null,null,null,null,"X20-1105622",0,0,0,0,0,0,0,0]
["X21-274320",null,"2021-07-01","2021-07-31",null,null,null,"Sta 307","300","4","Station MCC Replacement","This project will require a station outage, which will limit throughput through the station and result in restrictions based on customer nominations.","SIP","Potential in the path restrictions may be at risk.",null,null,null,null,null,null,null,null,null,null,"X21-274320",0,0,0,0,0,0,0,0]
["X19-829634",null,"2021-02-15","2021-06-30",null,null,null,"Sta 307: Unit 3A","300","4","Foundation Replacement","This project will require a unit outage, which could limit throughput through the station and result in restrictions based on customer nominations.","SIP","Potential in the path restrictions may be at risk.",null,null,null,null,null,null,null,null,null,null,"X19-829634",0,0,0,0,0,0,0,0]
["X19-144300","***","2021-05-01","2021-09-15","Project Change",null,null,"Sta 307: Unit 5A","300","4","Install Fuel Injection System and Fuel Gas Skid","This project will require a unit outage, which could limit throughput through the station and result in restrictions based on customer nominations.","SIP","Potential in the path restrictions may be at risk.",null,null,null,null,null,null,null,null,null,null,"X19-144300",0,0,0,0,0,1,1,0]
["X21-253642",null,"2021-05-24","2021-06-12",null,null,null,"MLV 307-1 to 313-1","300","4","Anomaly Remediation","This project may require taking the pipeline section out of service which could limit throughput and result in restrictions based on customer nominations.","SIP","Potential in the path restrictions may be at risk.",null,null,null,null,null,null,null,null,null,null,"X21-253642",0,0,0,0,0,0,0,0]
["X21-295600",null,"2021-10-05","2021-10-06",null,null,null,"Station 313","300","4","Annual ESD test","This project will require a station outage, which will limit throughput through the station and result in restrictions based on customer nominations.","SOP","Potential out of path restrictions may be at risk.",null,null,null,null,null,null,null,null,null,null,"X21-295600",0,0,0,0,0,0,0,0]
["X21-250297",null,"2021-06-07","2021-10-24",null,null,null,"Sta 313: Unit 3A, 6A - 9A","300","4","Automation Upgrade","This project will require a unit outage, which will limit throughput through the station and result in restrictions based on customer nominations.","SOP","Potential out of path restrictions may be at risk.",null,null,null,null,null,null,null,null,null,null,"X21-250297",0,0,0,0,0,0,0,0]
["X21-320687","***","2021-04-01","2021-05-14","Project Change","4/01/21","5/07/21","Sta 313: Unit 1B","300","4","50k Hour Overhaul","This project will require a unit outage, which will limit throughput through the station and result in restrictions based on customer nominations.","SOP","Potential out of path restrictions may be at risk.",null,null,null,null,null,null,null,null,null,null,"X21-320687",0,0,1,0,0,0,0,0]
["X20-957335","***","2021-05-12","2021-05-13","Completed",null,null,"Station 405","400 (HC)","4","Annual ESD test","This project will require a station outage, which will limit throughput through the station and result in restrictions based on customer nominations.","SIP","Potential in the path restrictions may be at risk.",null,null,null,null,null,null,null,null,null,null,"X20-957335",1,0,0,0,0,0,0,0]
["X21-295604",null,"2021-09-14","2021-09-14",null,null,null,"Station 313A","300","4","Annual ESD test","This project will require a station outage, which will limit throughput through the station and result in restrictions based on customer nominations.","SOP","Potential out of path restrictions may be at risk.",null,null,null,null,null,null,null,null,null,null,"X21-295604",0,0,0,0,0,0,0,0]
["X21-447820",null,"2021-06-01","2021-06-01",null,null,null,"Sta 315","300","4","ESD ReTest","This project will require a station outage, which will limit throughput through the station and result in restrictions based on customer nominations.","SIP","Potential in the path restrictions may be at risk.",null,null,null,null,null,null,null,null,null,null,"X21-447820",0,0,0,0,0,0,0,0]
["X21-295368","***","2021-09-27","2021-10-15","Project Change",null,null,"MLV 315-1 to MLV 316-1","300","4","Line Reroute","This project will require taking the pipeline section out of service which could limit throughput and result in restrictions based on customer nominations.   The meters listed will be shut in during the project.","SOP","Potential out of path restrictions may be at risk.","412858 DIV PROD/TGP MASON DEHY: RIP 315F 1\n412781 NFG/TGP HOLLOW ROAD DEHY: RIP 3158\n412797 NFG/TGP UDP RICHMOND DEHY:RIP 315E",null,null,null,null,null,null,null,null,null,"X21-295368",0,0,0,0,1,0,0,1]
["X21-467822","***","2021-06-02","2021-06-02","Added",null,null,"Sta 317: Unit 1C","300","4","Water Wash & Borescope","This project will require a unit outage, which will limit throughput through the station and result in restrictions based on customer nominations.  Customers may experience higher pressure fluctuations; however, no other service impact is anticipated.","SOP","Potential out of path restrictions may be at risk.",null,null,null,null,null,null,null,null,null,null,"X21-467822",1,0,0,0,0,0,0,0]
["X21-28982",null,"2021-06-14","2021-06-28",null,null,null,"Sta 321","300","4","Gas Cooler Installation","This project will require a station outage, which will limit throughput through the station and result in restrictions based on customer nominations.","SOP","Potential out of path restrictions may be at risk.",null,null,null,null,null,null,null,null,null,null,"X21-28982",0,0,0,0,0,0,0,0]
["X21-42714","***","2021-05-17","2021-05-23","Project Change","5/24/21","5/30/21","MLV 325-2 to MLV 329-2","300","5","Anomaly Remediation","This project may require taking the pipeline section out of service which could limit throughput and result in restrictions based on customer nominations.","SOP","Potential out of path restrictions may be at risk.",null,null,null,null,null,null,null,null,null,null,"X21-42714",0,1,1,0,0,0,0,0]
["X20-1050171",null,"2021-06-15","2021-08-31",null,null,null,"MLVS 328-1","300","5","Pipe Replacement","This project will require replacing the pipeline section. Customers may experience pressure fluctuations; however, no other service impact is anticipated.","SOP","Potential out of path restrictions may be at risk.",null,null,null,null,null,null,null,null,null,null,"X20-1050171",0,0,0,0,0,0,0,0]
["X21-36198","***","2021-09-01","2021-09-20","Project Change","6/07/21","6/26/21","MLV 334A-100","300","6","ECDA","This project may require taking the pipeline section out of service which could limit throughput and result in restrictions based on customer nominations.","SOP","Potential out of path restrictions may be at risk.",null,null,null,null,null,null,null,null,null,null,"X21-36198",0,1,1,0,0,0,0,0]
["X21-26872",null,"2021-05-01","2021-08-01",null,null,null,"MLV 334A","300","6","Meter Station Upgrade (White Plains MN 420093)","This project will require taking the meter station out of service. The meter listed will be shut in during the project.","SOP","Potential out of path restrictions may be at risk.","420093 CON ED/TGP WHITE PLAINS NY WESTCHES",null,null,null,null,null,null,null,null,null,"X21-26872",0,0,0,0,0,0,0,0]
["X20-1105623",null,"2021-05-10","2021-05-28",null,null,null,"334A-100 Con Ed Delivery (Meter Station to EOL)","300","6","ILI tools with cable system","This activity will require operating at controlled flow rates. The meter listed will be shut in during the pig run.","SOP","Potential out of path restrictions may be at risk.","420093 CON ED/TGP WHITE PLAINS NY WESTCHES",null,null,null,null,null,null,null,null,null,"X20-1105623",0,0,0,0,0,0,0,0]
["X21-441964",null,"2021-06-07","2021-06-12",null,null,null,"MLV 401-1 to MLV 402-1","400 (So TX)","0","Anomaly Remediation","This project may require taking the pipeline section out of service which could limit throughput and result in restrictions based on customer nominations.","SOP","Potential out of path restrictions may be at risk.",null,null,null,null,null,null,null,null,null,null,"X21-441964",0,0,0,0,0,0,0,0]
["X21-441966",null,"2021-05-24","2021-06-04",null,null,null,"MLV 402-1 to MLV 403-1","400 (So TX)","0","Anomaly Remediation","This project may require taking the pipeline section out of service which could limit throughput and result in restrictions based on customer nominations.","SOP","Potential out of path restrictions may be at risk.",null,null,null,null,null,null,null,null,null,null,"X21-441966",0,0,0,0,0,0,0,0]
["X21-305619","***","2021-05-10","2021-05-28","Project Change","5/10/21","5/21/21","MLV 403-1 to MLV 404-1","400 (So TX)","0","Anomaly Remediation","This project may require taking the pipeline section out of service which could limit throughput and result in restrictions based on customer nominations.    The meter listed below will be shut-in during the project.","SOP","Potential out of path restrictions may be at risk.","412733 UES/TGP MYRICK BROOKS",null,null,null,null,null,null,null,null,null,"X21-305619",0,0,1,0,1,0,0,1]
["X21-305610",null,"2021-05-03","2021-05-14",null,null,null,"MLV 404-1 to MLV 405-1","400 (So TX)","0","Anomaly Remediation","This project may require taking the pipeline section out of service which could limit throughput and result in restrictions based on customer nominations.","SOP","Potential out of path restrictions may be at risk.",null,null,null,null,null,null,null,null,null,null,"X21-305610",0,0,0,0,0,0,0,0]
["X21-78471","***","2021-07-15","2021-07-31","Completed",null,null,"MLVS 404-1","400 (So TX)","0","Class Change","This project will require taking the pipeline section out of service which could limit throughput and result in restrictions based on customer nominations.","SIP","Potential in the path restrictions may be at risk.",null,null,null,null,null,null,null,null,null,null,"X21-78471",1,0,0,0,0,0,0,0]
["X21-78472","***","2021-08-01","2021-08-15",null,null,null,"MLVS 404-2","400 (So TX)","0","Class Change","This project will require taking the pipeline section out of service which could limit throughput and result in restrictions based on customer nominations.","PIP","Potential in the path restrictions may be at risk.",null,null,null,null,null,null,null,null,null,null,"X21-78472",0,0,0,0,0,1,0,0]
["X21-305591","***","2021-03-15","2021-05-07","Completed",null,null,"MLV 405-1 to MLV 408-1","400 (So TX)","0","Anomaly Remediation","This project may require taking the pipeline section out of service which could limit throughput and result in restrictions based on customer nominations.","SOP","Potential out of path restrictions may be at risk.",null,null,null,null,null,null,null,null,null,null,"X21-305591",1,0,0,0,0,0,0,0]
["X20-957179",null,"2021-06-03","2021-06-05",null,null,null,"Station 409","400 (So TX)","5","Annual ESD test","This project will require a station outage, which will limit throughput through the station and result in restrictions based on customer nominations.","PIP","Potential in the path restrictions may be at risk.",null,null,null,null,null,null,null,null,null,null,"X20-957179",0,0,0,0,0,0,0,0]
["X21-161622",null,"2021-06-28","2021-07-10",null,null,null,"Sta 409A","400 (So TX)","0","Protective Device Inspection","This project will require a station outage, which will limit throughput through the station and result in restrictions based on customer nominations.","SOP","Potential out of path restrictions may be at risk.",null,null,null,null,null,null,null,null,null,null,"X21-161622",0,0,0,0,0,0,0,0]
["X21-67881","***","2021-08-17","2021-08-22","Project Change",null,null,"Sta 409: Unit 1A","400 (So TX)","0","25k Hr Inspection","This project will require a unit outage, which could limit throughput through the station and result in restrictions based on customer nominations.","PIP","Potential in the path restrictions may be at risk.",null,null,null,null,null,null,null,null,null,null,"X21-67881",0,0,0,0,0,1,1,0]
["X21-67884","***","2021-09-14","2021-09-19","Project Change",null,null,"Sta 409: Unit 2A","400 (So TX)","0","25k Hr Inspection","This project will require a unit outage, which could limit throughput through the station and result in restrictions based on customer nominations.","PIP","Potential in the path restrictions may be at risk.",null,null,null,null,null,null,null,null,null,null,"X21-67884",0,0,0,0,0,1,1,0]
["X21-358927",null,"2021-07-12","2021-07-12",null,null,null,"MLV 401-1 to MLV 409-1","400 (So TX)","0","Maintenance Pig","This activity will require operating at controlled flow rates. Customers may experience pressure fluctuations; however, no other service impact is anticipated.","SOP","Potential out of path restrictions may be at risk.",null,null,null,null,null,null,null,null,null,null,"X21-358927",0,0,0,0,0,0,0,0]
["X21-358931",null,"2021-10-13","2021-10-13",null,null,null,"MLV 401-1 to MLV 409-1","400 (So TX)","0","Maintenance Pig","This activity will require operating at controlled flow rates. Customers may experience pressure fluctuations; however, no other service impact is anticipated.","SOP","Potential out of path restrictions may be at risk.",null,null,null,null,null,null,null,null,null,null,"X21-358931",0,0,0,0,0,0,0,0]
["X21-358933","***","2021-07-13","2021-07-13","Project Change",null,null,"MLV 401-2 to MLV 409-2","400 (So TX)","0","Maintenance Pig","This activity will require operating at controlled flow rates. Customers may experience pressure fluctuations; however, no other service impact is anticipated.","SIP","Potential in the path restrictions may be at risk.",null,null,null,null,null,null,null,null,null,null,"X21-358933",0,0,0,0,0,1,1,0]
["X21-358939",null,"2021-10-14","2021-10-14",null,null,null,"MLV 401-2 to MLV 409-2","400 (So TX)","0","Maintenance Pig","This activity will require operating at controlled flow rates. Customers may experience pressure fluctuations; however, no other service impact is anticipated.","SOP","Potential out of path restrictions may be at risk.",null,null,null,null,null,null,null,null,null,null,"X21-358939",0,0,0,0,0,0,0,0]
["X21-447823",null,"2021-10-18","2021-11-05",null,null,null,"Sta 500C1: Unit A1","500","1","Unit Replacement","This project will require a unit outage, which will limit throughput through the station and result in restrictions based on customer nominations.","SOP","Potential out of path restrictions may be at risk.",null,null,null,null,null,null,null,null,null,null,"X21-447823",0,0,0,0,0,0,0,0]
["X21-55857",null,"2021-08-16","2021-08-31",null,null,null,"MLV 500-1 TO MLV 507-1","500","L","Pig Run - Cleaning Gauge 8/16 - 8/24, Combo 8/25 - 8/26, Hard Spot 8/29 - 8/30, AFD 8/31","This activity will require operating at controlled flow rates. Customers may experience pressure fluctuations.  The meters listed may be shut in during the project.","SOP","Potential out of path restrictions may be at risk.","420373 TRNSCO/TGP KINDER LA EXCH (BI 1\n420708 ELIZ NG/TGP GRANT LA SALES ALLEN\n420436 VERNON/TGP PITKIN LA VERNON\n420793 ELIZ NG/TGP J R FRANKS 1 VERNON\n420388 PROVNCAL/TGP PROVENCAL LA NATCHITOC",null,null,null,null,null,null,null,null,null,"X21-55857",0,0,0,0,0,0,0,0]
["X21-135749","***","2021-07-19","2021-07-26","Project Change","7/14/21","7/21/21","MLV 504-1A and MLV 505-1","500","L","Pipe Replacement Whiskey Chitto River Crossing","This project will require taking the pipeline section out of service which could limit throughput and result in restrictions based on customer nominations.  The meter listed below will be shut-in during the project.","SIP","Potential in the path restrictions may be at risk.","420708 ELIZ NG/TGP GRANT LA SALES ALLEN",null,null,null,null,null,null,null,null,null,"X21-135749",0,1,1,0,0,0,0,0]
["X21-269664",null,"2021-05-18","2021-05-18",null,null,null,"Sta 516 to MLV 823","500","L","Maintenance Pig","This activity will require operating at controlled flow rates. The meters listed may experience pressure fluctuations; however, no other service impact is anticipated.","SOP","Potential out of path restrictions may be at risk.","412398 JEFFSTOR/TGP JEFFERSON ISLAND IBERI\n420915 CEGS/TGP PORT IBERIA SALES IBERIA\n421056 ACADIAN/TGP INDIAN BAYOU: DIP 510B-\n410907 TRUNKLNE/TGP CENTERVILLE DEHY TRANS\n450105 AMMID SC/TGP QUIVIRA ST MARY\n412594 NAUTILUS/TGP GARDEN CITY ST MARY\n412684 ANR/TGP SHADYSIDE ST MARY",null,null,null,null,null,null,null,null,null,"X21-269664",0,0,0,0,0,0,0,0]
["X21-269661",null,"2021-09-16","2021-09-16",null,null,null,"STA 507F to Sta 823","500","L","Maintenance Pig","This activity will require operating at controlled flow rates. The meter listed may experience pressure fluctuations; however, no other service impact is anticipated.","SOP","Potential out of path restrictions may be at risk.","410671 TARGA/TGP UDP LOWRY PLANT DEHY CAME",null,null,null,null,null,null,null,null,null,"X21-269661",0,0,0,0,0,0,0,0]
["X21-269663",null,"2021-09-14","2021-09-14",null,null,null,"STA 507K to STA 823","500","L","Maintenance Pig","This activity will require operating at controlled flow rates. Customers may experience pressure fluctuations; however, no other service impact is anticipated.","SOP","Potential out of path restrictions may be at risk.",null,null,null,null,null,null,null,null,null,null,"X21-269663",0,0,0,0,0,0,0,0]
["X21-68040","***","2021-06-21","2021-07-03","Project Change","6/07/21","7/03/21","MLVS 511-1","500","L","Class Change","This project will require taking the pipeline section out of service which could limit throughput and result in restrictions based on customer nominations.","SOP","Potential out of path restrictions may be at risk.",null,null,null,null,null,null,null,null,null,null,"X21-68040",0,1,0,0,0,0,0,0]
["X21-27158",null,"2021-06-07","2021-06-13",null,null,null,"MLV 513-1 to MLV 514-1","500","L","Line Lowering & Tie In","This project will require taking the pipeline section out of service. The meter listed will be shut in during the project.","SOP","Potential out of path restrictions may be at risk.","420915 SYMMETRY/TGP PORT IBERIA SALES IBER",null,null,null,null,null,null,null,null,null,"X21-27158",0,0,0,0,0,0,0,0]
["X21-171320",null,"2021-06-07","2021-06-16",null,null,null,"MLV 527-3 to MLV 529-2","500","L","Pig Runs - Cleaning 6/7 - 6/9, Gauge 6/9, MLF 6/10, Caliper 6/15, EMAT 6/16","This activity will require operating at controlled flow rates. Customers may experience pressure fluctuations; however, no other service impact is anticipated.","SOP","Potential out of path restrictions may be at risk.",null,null,null,null,null,null,null,null,null,null,"X21-171320",0,0,0,0,0,0,0,0]
["X21-171325",null,"2021-07-07","2021-07-09",null,null,null,"MLV 534-1 to MLV 535-1A","500","1","Pig Runs - Cleaning 7/7, Gauge 7/7, Caliper 7/8, MFL 7/9","This activity will require operating at controlled flow rates. Customers may experience pressure fluctuations; however, no other service impact is anticipated.","SOP","Potential out of path restrictions may be at risk.",null,null,null,null,null,null,null,null,null,null,"X21-171325",0,0,0,0,0,0,0,0]
["X21-69618","***","2021-06-21","2021-06-30","Project Change",null,null,"MLV 536-2 to MLV 537-2","500","1","Anomaly Remediation","This project may require taking the pipeline section out of service which could limit throughput and result in restrictions based on customer nominations.","SIP","Potential in the path restrictions may be at risk.",null,null,null,null,null,null,null,null,null,null,"X21-69618",0,0,0,0,0,1,1,0]
["X21-69621",null,"2021-09-27","2021-10-13",null,null,null,"MLV 538-2 to MLV 539-2","500","1","Anomaly Remediation","This project may require taking the pipeline section out of service which could limit throughput and result in restrictions based on customer nominations.  The meters listed will be shut in during the project.","SOP","Potential out of path restrictions may be at risk.","412789 LEAF/TGP JASPER COUNTY: RIP 538 2 5\n412066 DCP OPER/TGP INEZ INTERCONNECT DEHY",null,null,null,null,null,null,null,null,null,"X21-69621",0,0,0,0,0,0,0,0]
["X21-25228",null,"2021-08-30","2021-12-01",null,null,null,"MLV 540-1A to MLV 541-1","500","1","Class Change","This project will require taking the pipeline section out of service which could limit throughput and result in restrictions based on customer nominations.","SIP","Potential in the path restrictions may be at risk.",null,null,null,null,null,null,null,null,null,null,"X21-25228",0,0,0,0,0,0,0,0]
["X21-25225",null,"2021-08-10","2021-08-27",null,null,null,"MLV 540-2A to MLV 541-2","500","1","Class Change","This project will require taking the pipeline section out of service which could limit throughput and result in restrictions based on customer nominations.","SIP","Potential in the path restrictions may be at risk.",null,null,null,null,null,null,null,null,null,null,"X21-25225",0,0,0,0,0,0,0,0]
["X21-69622",null,"2021-10-14","2021-10-25",null,null,null,"MLV 540-2 to MLV 541-2","500","1","Anomaly Remediation","This project may require taking the pipeline section out of service which could limit throughput and result in restrictions based on customer nominations.","SOP","Potential out of path restrictions may be at risk.",null,null,null,null,null,null,null,null,null,null,"X21-69622",0,0,0,0,0,0,0,0]
["X21-171248",null,"2021-02-24","2021-06-30",null,null,null,"Sta 542: Unit 4A","500","1","Crankshaft Repair","This project will require a unit outage, which could limit throughput through the station and result in restrictions based on customer nominations.","SOP","Potential out of path restrictions may be at risk.",null,null,null,null,null,null,null,null,null,null,"X21-171248",0,0,0,0,0,0,0,0]
["X21-171340",null,"2021-06-21","2021-07-01",null,null,null,"MLV 542-1 to MLV 538-1","500","1","Pig Runs - Chem Cleaning 6/21 - 6/25, Gauge 6/25, Caliper 6/29, MFL 7/1","This activity will require operating at controlled flow rates. Customers may experience pressure fluctuations.  The meter listed will be shut in during the project.","SOP","Potential out of path restrictions may be at risk.","420807 ATMOS-MS/TGP PINE SPRINGS ROAD LEAK",null,null,null,null,null,null,null,null,null,"X21-171340",0,0,0,0,0,0,0,0]
["X21-25215",null,"2021-05-03","2021-06-01",null,null,null,"MLV 542-2 to MLV 544-2","500","1","Valve & Drip Replacement","This project will require taking the pipeline section out of service which could limit throughput and result in restrictions based on customer nominations.","SIP","Potential in the path restrictions may be at risk.",null,null,null,null,null,null,null,null,null,null,"X21-25215",0,0,0,0,0,0,0,0]
["X21-25221",null,"2021-06-01","2021-06-07",null,null,null,"MLV 543-2 to MLV 545-2","500","1","Valve Replacement","This project will require taking the pipeline section out of service which could limit throughput and result in restrictions based on customer nominations.","SIP","Potential in the path restrictions may be at risk.",null,null,null,null,null,null,null,null,null,null,"X21-25221",0,0,0,0,0,0,0,0]
["X21-262761","***","2021-05-17","2021-05-22",null,null,null,"Station 546","500","1","Annual ESD test & Maintenance","This project will require a station outage, which will limit throughput through the station and result in restrictions based on customer nominations.","SIP","Potential in the path restrictions may be at risk.",null,null,null,null,null,null,null,null,null,null,"X21-262761",0,0,0,0,0,1,0,0]
["X21-449339","***","2021-05-11","2021-05-14","Project Change","5/12/21","5/14/21","Sta 546: Unit 2A","500","1","Excessive Movement","This project will require a unit outage, which could limit throughput through the station and result in restrictions based on customer nominations.","SOP","Potential in the path restrictions may be at risk.",null,null,null,null,null,null,null,null,null,null,"X21-449339",0,1,0,0,0,0,0,0]
["X21-262814",null,"2021-04-12","2021-06-11",null,null,null,"Sta 546: Unit 7A","500","1","Engine and Compressor Overhaul","This project will require a unit outage, which will limit throughput through the station and result in restrictions based on customer nominations.","SOP","Potential out of path restrictions may be at risk.",null,null,null,null,null,null,null,null,null,null,"X21-262814",0,0,0,0,0,0,0,0]
["X21-171328",null,"2021-07-20","2021-07-22",null,null,null,"MLV 546-1 to MLV 542-1","500","1","Pig Runs - Cleaning 7/20, Gauge 7/21, MFL 7/22","This activity will require operating at controlled flow rates. Customers may experience pressure fluctuations; however, no other service impact is anticipated.","SOP","Potential out of path restrictions may be at risk.",null,null,null,null,null,null,null,null,null,null,"X21-171328",0,0,0,0,0,0,0,0]
["X21-171335",null,"2021-07-28","2021-08-02",null,null,null,"MLV 546-2 to MLV 542-2","500","1","Pig Runs - Cleaning 7/28, Gauge 7/29, Caliper 7/30, MFL 8/2","This activity will require operating at controlled flow rates. Customers may experience pressure fluctuations; however, no other service impact is anticipated.","SOP","Potential out of path restrictions may be at risk.",null,null,null,null,null,null,null,null,null,null,"X21-171335",0,0,0,0,0,0,0,0]
["X21-69623",null,"2021-08-31","2021-09-24",null,null,null,"MLV 546-2 to MLV 547-2","500","1","Anomaly Remediation","This project may require taking the pipeline section out of service which could limit throughput and result in restrictions based on customer nominations.","SOP","Potential out of path restrictions may be at risk.",null,null,null,null,null,null,null,null,null,null,"X21-69623",0,0,0,0,0,0,0,0]
["X21-171339",null,"2021-08-09","2021-08-11",null,null,null,"MLV 546-3 to MLV 544-3","500","1","Pig Runs - Cleaning 8/9, Gauge 8/10, MFL 8/11","This activity will require operating at controlled flow rates. Customers may experience pressure fluctuations; however, no other service impact is anticipated.","SOP","Potential out of path restrictions may be at risk.",null,null,null,null,null,null,null,null,null,null,"X21-171339",0,0,0,0,0,0,0,0]
["X21-69624",null,"2021-08-23","2021-08-30",null,null,null,"MLV 547-2 to MLV 548-2","500","1","Anomaly Remediation","This project may require taking the pipeline section out of service which could limit throughput and result in restrictions based on customer nominations.  The meters listed will be shut in during the project.","SOP","Potential out of path restrictions may be at risk.","412134 DUKE/TGP FAYETTE VERNON TRANSPORT L\n48033 BBTBAMA/TGP FAYETTE VERNON LAMAR",null,null,null,null,null,null,null,null,null,"X21-69624",0,0,0,0,0,0,0,0]
["X21-403420",null,"2021-06-07","2021-06-25",null,null,null,"Sta 550: Unit 1A","500","1","Air Manifold Gasket","This project will require a unit outage, which will limit throughput through the station and result in restrictions based on customer nominations.","SOP","Potential out of path restrictions may be at risk.",null,null,null,null,null,null,null,null,null,null,"X21-403420",0,0,0,0,0,0,0,0]
["X21-250310",null,"2021-09-20","2021-10-22",null,null,null,"Sta 550: Unit 1B","500","1","Automation Upgrade","This project will require a unit outage, which will limit throughput through the station and result in restrictions based on customer nominations.","SOP","Potential out of path restrictions may be at risk.",null,null,null,null,null,null,null,null,null,null,"X21-250310",0,0,0,0,0,0,0,0]
["X20-957355","***","2021-05-17","2021-05-23","Project Change","5/18/21","5/18/21","Station 555","500","1","Annual ESD test","This project will require a station outage, which will limit throughput through the station and result in restrictions based on customer nominations.","SOP","Potential out of path restrictions may be at risk.",null,null,null,null,null,null,null,null,null,null,"X20-957355",0,1,1,0,0,0,0,0]
["X21-116271",null,"2021-06-28","2021-08-15",null,null,null,"Sta 555: Unit 4A, 5A, 6A","500","1","Automation Upgrade","This project will require unit outages, which will limit throughput through the station and result in restrictions based on customer nominations.","SOP","Potential out of path restrictions may be at risk.",null,null,null,null,null,null,null,null,null,null,"X21-116271",0,0,0,0,0,0,0,0]
["X21-292521",null,"2021-07-05","2021-07-24",null,null,null,"MLV 555-2 to MLV 556-2","500","1","Anomaly Remediation","This project may require taking the pipeline section out of service which could limit throughput and result in restrictions based on customer nominations.","SOP","Potential out of path restrictions may be at risk.",null,null,null,null,null,null,null,null,null,null,"X21-292521",0,0,0,0,0,0,0,0]
["X21-292526",null,"2021-08-02","2021-08-14",null,null,null,"MLV 557-3 to MLV 559-3","500","1","Anomaly Remediation","This project may require taking the pipeline section out of service which could limit throughput and result in restrictions based on customer nominations.","SOP","Potential out of path restrictions may be at risk.",null,null,null,null,null,null,null,null,null,null,"X21-292526",0,0,0,0,0,0,0,0]
["X20-1050037",null,"2021-10-06","2021-10-22",null,null,null,"MLV 560-2 to MLV 562-2","500","1","Pressure Test & New Valve Installation","This project will require taking the pipeline section out of service which could limit throughput and result in restrictions based on customer nominations.","SOP","Potential out of path restrictions may be at risk.",null,null,null,null,null,null,null,null,null,null,"X20-1050037",0,0,0,0,0,0,0,0]
["X21-144366",null,"2021-08-31","2021-09-01",null,null,null,"MLV 561-1 to MLV 562-1","500","2","Replace Crossover","This project will require taking the pipeline section out of service which could limit throughput and result in restrictions based on customer nominations.","SOP","Potential out of path restrictions may be at risk.",null,null,null,null,null,null,null,null,null,null,"X21-144366",0,0,0,0,0,0,0,0]
["X21-126059","***","2021-07-13","2021-07-14","Project Change",null,null,"Sta 563","500","2","Annual ESD test","This project will require a station outage, which will limit throughput through the station and result in restrictions based on customer nominations.","SOP","Potential out of path restrictions may be at risk.",null,null,null,null,null,null,null,null,null,null,"X21-126059",0,0,0,0,0,1,1,0]
["X21-386355","***","2021-05-10","2021-05-23","Project Change",null,null,"Sta 563","500","1","Engine Inspection","This project will require a unit outage, which will limit throughput through the station and result in restrictions based on customer nominations.","SIP","Potential in the path restrictions may be at risk.",null,null,null,null,null,null,null,null,null,null,"X21-386355",0,0,0,0,0,1,1,0]
["X20-1050040",null,"2021-09-08","2021-10-29",null,null,null,"MLV 563-2A to MLV 564-2BR","500","1","Pressure Test & New Valve Installation","This project will require taking the pipeline section out of service which could limit throughput and result in restrictions based on customer nominations.","SOP","Potential out of path restrictions may be at risk.",null,null,null,null,null,null,null,null,null,null,"X20-1050040",0,0,0,0,0,0,0,0]
["X21-274359","***","2021-07-01","2021-07-31","Project Change",null,null,"MLV 700-1 to MLV 701-1","700","0","Wrinkle Bend Replacement","This project will require taking the pipeline section out of service which could limit throughput and result in restrictions based on customer nominations.","SOP","Potential out of path restrictions may be at risk.","410031\tETX GAS/TGP EAST TX PLANT DEHY PANO\n412688\tMIDCOAST/TGP PANOLA TRANSPORT 2 PAN\n411200\tTGP/TGP ENTEX PANOLA TRANSPORT PANO\n420723\tETP/TGP CARTHAGE GAS UNIT 13 PANOLA\n411525\tPETROQUE/TGP BELLE BOWER DEHY PANOL\n412759\tUES/TGP UDP BURFORD GATHERING: RIP \n412764\tENT GATH/TGP UDP STATE LINE PROCESS\n412607\tCOVEY/TGP HOLLY FIELD DE SOTO\n412725\tETC TX/TGP  DE SOTO\n412081\tEPE/TGP UDP BETHANY LONGSTREET FIEL\n412026\tBEUSA/TGP GRAND CANE DE SOTO\n412807\tETC TX/TGP LOGANSPORT B: RIP 704H 1\n412706\tETC FS/TGP LOGANSPORT DE SOTO\n412610\tMAGNUMPL/TGP WEST MANSFIELD DE SOTO\n412583\tGCENGY/TGP BENSON AND CONVERSE DE S\n412814\tEMP/TGP BLACKSTONE NO 1: RIP 703K 1\n411442\tSHOALMIR/TGP NABORTON DEHYD D N BEL\n412775\tCOMOG-LA/TGP TRENTON SALES: RIP 703\n412819\tLOUISMID/TGP CONVERSE CENTRAL: RIP \n412765\tEMP/TGP HARRIS 19.1: RIP 703G 101.1\n412786\tEMP/TGP BLACKSTONE IVORY: RIP 702M \n411330\tTEXLA/TGP CHEMARD LAKE DEHY DE SOTO\n411143\tPG&E/TGP GROGAN DEHYN TRANSPORT NAT\n411598\tSHUFFLIN/TGP SAN MIGUEL CREEK FIELD\n411755\tIND MKTG/TGP GROGAN FIELD DE SOTO",null,null,null,null,null,null,null,null,null,"X21-274359",0,0,0,0,0,1,1,0]
["X20-957357","***","2021-08-19","2021-08-19","Completed",null,null,"Station 823","800","L","Annual ESD test","This project will require a station outage, which will limit throughput through the station and result in restrictions based on customer nominations.","SIP","Potential in the path restrictions may be at risk.",null,null,null,null,null,null,null,null,null,null,"X20-957357",1,0,0,0,0,0,0,0]
["X20-957359",null,"2021-07-12","2021-07-16",null,null,null,"Station 827","800","L","Annual ESD test","This project will require a station outage, which will limit throughput through the station and result in restrictions based on customer nominations.","SIP","Potential in the path restrictions may be at risk.",null,null,null,null,null,null,null,null,null,null,"X20-957359",0,0,0,0,0,0,0,0]
["X21-269657",null,"2021-07-13","2021-07-13",null,null,null,"Sta 827 to Sta 823","800","L","Maintenance Pig","This activity will require operating at controlled flow rates. The meters listed may experience pressure fluctuations; however, no other service impact is anticipated.","SOP","Potential out of path restrictions may be at risk.","421043 PINE PRA/TGP PINE PRAIRIE NORTH RAP\n412847 ACADIAN/TGP CHENEYVILLE RAPIDES\n412713 HUGHES E/TGP UDP BLACK STONE13 EVAN\n412844 TEXLA/TGP ROY MARTIN GATHERING: RIP\n420296 FORSTHIL/TGP FOREST HILL LA RAPIDES\n420530 GLNMORA/TGP GLENMORA LA EXCH RAPIDE\n421042 ELIZ NG/TGP EVANGELINE SALES EVANGE\n420629 ELIZ NG/TGP OAKDALE DETENTION SALES\n420687 ELIZ NG/TGP ALLEN PARISH PRISON SAL\n420406 ELIZ NG/TGP ELIZABETH LA EMERGENCY\n53483 AIRLIQAT/TGP TIMBERLANE BIOGAS REC",null,null,null,null,null,null,null,null,null,"X21-269657",0,0,0,0,0,0,0,0]
["X21-277608",null,"2021-10-06","2021-10-06",null,null,null,"Sta 827 to Sta 823","800","L","Maintenance Pig","This activity will require operating at controlled flow rates. The meters listed may experience pressure fluctuations; however, no other service impact is anticipated.","SOP","Potential out of path restrictions may be at risk.","421043 PINE PRA/TGP PINE PRAIRIE NORTH RAP\n412847 ACADIAN/TGP CHENEYVILLE RAPIDES\n412713 HUGHES E/TGP UDP BLACK STONE13 EVAN\n412844 TEXLA/TGP ROY MARTIN GATHERING: RIP\n420296 FORSTHIL/TGP FOREST HILL LA RAPIDES\n420530 GLNMORA/TGP GLENMORA LA EXCH RAPIDE\n421042 ELIZ NG/TGP EVANGELINE SALES EVANGE\n420629 ELIZ NG/TGP OAKDALE DETENTION SALES\n420687 ELIZ NG/TGP ALLEN PARISH PRISON SAL\n420406 ELIZ NG/TGP ELIZABETH LA EMERGENCY\n53483 AIRLIQAT/TGP TIMBERLANE BIOGAS REC",null,null,null,null,null,null,null,null,null,"X21-277608",0,0,0,0,0,0,0,0]
["X21-120311",null,"2021-06-07","2021-06-08",null,null,null,"Sta 834","800","1","Station Filter Change Out","This project will require a station outage, which will limit throughput through the station and result in restrictions based on customer nominations.","SOP","Potential out of path restrictions may be at risk.",null,null,null,null,null,null,null,null,null,null,"X21-120311",0,0,0,0,0,0,0,0]
["X21-277676","***","2021-07-13","2021-07-13","Project Change",null,null,"Sta 834 to Sta 827","800","L","Maintenance Pig","This activity will require operating at controlled flow rates. Meters 421043 and 412847 will be shut-in for the duration of the project.  The other meters listed below will be temporarily shut-in as the pig passes.","SOP","Potential out of path restrictions may be at risk.","421043 PINE PRA/TGP PINE PRAIRIE NORTH RAP\n412847 ACADIAN/TGP CHENEYVILLE RAPIDES\n412713 HUGHES E/TGP UDP BLACK STONE13 EVAN\n412844 TEXLA/TGP ROY MARTIN GATHERING: RIP\n420296 FORSTHIL/TGP FOREST HILL LA RAPIDES\n420530 GLNMORA/TGP GLENMORA LA EXCH RAPIDE\n421042 ELIZ NG/TGP EVANGELINE SALES EVANGE\n420629 ELIZ NG/TGP OAKDALE DETENTION SALES\n420687 ELIZ NG/TGP ALLEN PARISH PRISON SAL\n420406 ELIZ NG/TGP ELIZABETH LA EMERGENCY\n53483 AIRLIQAT/TGP TIMBERLANE BIOGAS REC",null,null,null,null,null,null,null,null,null,"X21-277676",0,0,0,0,1,0,0,1]
["X21-277678",null,"2021-10-06","2021-10-06",null,null,null,"Sta 834 to Sta 827","800","L","Maintenance Pig","This activity will require operating at controlled flow rates. The meters listed may experience pressure fluctuations; however, no other service impact is anticipated.","SOP","Potential out of path restrictions may be at risk.","420755 ATMOS TL/TGP LASALLE PARISH NEBO SA\n420447 PELICANG/TGP HARRISONBURG LA CATAHO",null,null,null,null,null,null,null,null,null,"X21-277678",0,0,0,0,0,0,0,0]
["X21-120313",null,"2021-06-09","2021-06-09",null,null,null,"Sta 836","800","1","Station Filter Inspection","This project will require a station outage, which will limit throughput through the station and result in restrictions based on customer nominations.","SOP","Potential out of path restrictions may be at risk.",null,null,null,null,null,null,null,null,null,null,"X21-120313",0,0,0,0,0,0,0,0]
["X21-120315",null,"2021-06-15","2021-06-19",null,null,null,"Sta 838","800","1","Station Filter Inspection","This project will require a station outage, which will limit throughput through the station and result in restrictions based on customer nominations.","SOP","Potential out of path restrictions may be at risk.",null,null,null,null,null,null,null,null,null,null,"X21-120315",0,0,0,0,0,0,0,0]
["X21-292527","***","2021-06-23","2021-06-30","Project Change","7/06/21","7/11/21","MLV 847-1 to MLV 851-1","800","1","Anomaly Remediation","This project may require taking the pipeline section out of service which could limit throughput and result in restrictions based on customer nominations.  The meters listed may be shut in during the project.","SIP","Potential in the path restrictions may be at risk.","420047 NEWALBNY/TGP NEW ALBANY MS UNION\n420362 UTILMGMT/TGP PONTOTOC MS UNION",null,null,null,null,null,null,null,null,null,"X21-292527",0,1,1,0,0,0,0,0]
["X21-461652","***","2021-08-16","2021-08-30","Added",null,null,"MLV 851-1 to MLV 853-1","800","1","Anomaly Remediation","This project may require taking the pipeline section out of service which could limit throughput and result in restrictions based on customer nominations.  The meters listed may experience pressure fluctuations; however, no other service impact is anticipated.","SOP","Potential out of path restrictions may be at risk.","420282 NEWALBNY/TGP COTTON PLANT MS UNION\n420046 SYMMETRY/TGP RIPLEY MS TIPPAH\n420276 BLDWYN/TGP BALDWYN MS TIPPAH\n420429 BOONEVIL/TGP BOONEVILLE MS TIPPAH\n420855 CORINTH/TGP CORINTH 3 ALCORN\n420483 CORINTH/TGP CORINTH MS 2 ALCORN",null,null,null,null,null,null,null,null,null,"X21-461652",1,0,0,0,0,0,0,0]
["X21-171531",null,"2021-05-20","2021-05-21",null,null,null,"Station 856","800","1","Annual ESD test","This project will require a station outage, which will limit throughput through the station and result in restrictions based on customer nominations.","SOP","Potential out of path restrictions may be at risk.",null,null,null,null,null,null,null,null,null,null,"X21-171531",0,0,0,0,0,0,0,0]
["X21-458567","***","2021-05-24","2021-06-11","Added",null,null,"Sta 860: Unit 3A","800","1","Punch Carbon & Maintenance","This project will require a unit outage, which will limit throughput through the station and result in restrictions based on customer nominations.","SOP","Potential out of path restrictions may be at risk.",null,null,null,null,null,null,null,null,null,null,"X21-458567",1,0,0,0,0,0,0,0]
["X20-939915",null,"2020-02-10","2021-06-05",null,null,null,"Sta 860: Unit 5A","800","1","Crankcase Replacement & Regrout","This project will require a unit outage, which will limit throughput through the station and result in restrictions based on customer nominations.","SOP","Potential out of path restrictions may be at risk.",null,null,null,null,null,null,null,null,null,null,"X20-939915",0,0,0,0,0,0,0,0]
["X21-406261",null,"2021-06-08","2021-06-08",null,null,null,"Sta. 871","800","2","Annual ESD Test","This project will require a station outage, which will limit throughput through the station and result in restrictions based on customer nominations.","SOP","Potential out of path restrictions may be at risk.",null,null,null,null,null,null,null,null,null,null,"X21-406261",0,0,0,0,0,0,0,0]
["X21-447750","***","2021-05-10","2021-05-10","Completed",null,null,"Sta 871: Unit 1A","800","2","Replace Power Heads","This project will require a unit outage, which will limit throughput through the station and result in restrictions based on customer nominations.","SOP","Potential out of path restrictions may be at risk.",null,null,null,null,null,null,null,null,null,null,"X21-447750",1,0,0,0,0,0,0,0]
["X21-447751",null,"2021-05-17","2021-06-04",null,null,null,"Sta 871: Unit 2A","800","2","Replace Power Heads","This project will require a unit outage, which will limit throughput through the station and result in restrictions based on customer nominations.","SOP","Potential out of path restrictions may be at risk.",null,null,null,null,null,null,null,null,null,null,"X21-447751",0,0,0,0,0,0,0,0]

{"sheet":"Sheet2","index":2,"n_rows":0,"n_cols":0,"rows_kept":0,"cut":false,"hidden":true,"merged":[]}

{"sheet":"Sheet3","index":3,"n_rows":0,"n_cols":0,"rows_kept":0,"cut":false,"hidden":true,"merged":[]}